Workbook

Sheet Dolny układ jezdny
C7: =Opisy!A11 -> Wybierz system:
A9: 1.
C11: =Opisy!A14 -> Wymiary otworu | F11: SD | G11: =HLOOKUP('Obliczenia-dolny'!$B$44,'Obliczenia-dolny'!$L$1:$AI$46,5,FALSE) -> 1014.333333 | H11: =Opisy!$A$46 -> mm | I11: =Opisy!A51 -> Szerokość drzwi
A12: 2. | C12: =Opisy!A18 -> WO [mm] | D12: 2700 | E12: =IF(D12>2740,Opisy!A15,IF(D12<1000,Opisy!A16,Opisy!A17)) -> <- OK | F12: WD | G12: =HLOOKUP('Obliczenia-dolny'!$B$44,'Obliczenia-dolny'!$L$1:$AI$46,6,FALSE) -> 2660 | H12: =Opisy!$A$46 -> mm | I12: =Opisy!A52 -> Wysokość drzwi
A13: 3. | C13: =Opisy!A19 -> SO [mm] | D13: 3000 | E13: =IF(AND('Obliczenia-dolny'!C44='Obliczenia-dolny'!B11,'Dolny układ jezdny'!D13>3000),Opisy!A76,IF(D13>6000,Opisy!A20,IF(D13<1000,Opisy!A16,Opisy!A17))) -> <- OK | F13: SW18 | G13: =HLOOKUP('Obliczenia-dolny'!$B$44,'Obliczenia-dolny'!$L$1:$AI$46,7,FALSE) -> - | H13: =Opisy!$A$46 -> mm | I13: =Opisy!A53 -> Szer. wyp. 18mm
F14: SW16 | G14: =HLOOKUP('Obliczenia-dolny'!$B$44,'Obliczenia-dolny'!$L$1:$AI$46,8,FALSE) -> - | H14: =Opisy!$A$46 -> mm | I14: =Opisy!A54 -> Szer. wyp. 16mm
F15: SW12 | G15: =HLOOKUP('Obliczenia-dolny'!$B$44,'Obliczenia-dolny'!$L$1:$AI$46,9,FALSE) -> - | H15: =Opisy!$A$46 -> mm | I15: =Opisy!A55 -> Szer. wyp. 12mm
F16: SW10 | G16: =HLOOKUP('Obliczenia-dolny'!$B$44,'Obliczenia-dolny'!$L$1:$AI$46,10,FALSE) -> 987.3333333 | H16: =Opisy!$A$46 -> mm | I16: =Opisy!A56 -> Szer. wyp. 10mm
C17: =Opisy!A21 -> Konfiguracja skrzydeł | F17: SW4 | G17: =HLOOKUP('Obliczenia-dolny'!$B$44,'Obliczenia-dolny'!$L$1:$AI$46,11,FALSE) -> 984.3333333 | H17: =Opisy!$A$46 -> mm | I17: =Opisy!A57 -> Szer. wyp. 4mm
A18: 4. | C18: =Opisy!A22 -> n (l. skrzydeł) | D18: 3 | E18: =IF(D18=0,Opisy!A48,IF($D$18>$D$19,IF($D$18>$D$19+2,Opisy!A48,Opisy!A17),Opisy!A48)) -> <- OK | F18: WW18 | G18: =HLOOKUP('Obliczenia-dolny'!$B$44,'Obliczenia-dolny'!$L$1:$AI$46,12,FALSE) -> - | H18: =Opisy!$A$46 -> mm | I18: =Opisy!A58 -> Wys. wyp. 18mm
A19: 5. | C19: =Opisy!A23 -> k (l. zakładek) | D19: 2 | E19: =IF(D19=0,Opisy!A48,IF($D$18>$D$19,IF($D$18>$D$19+2,Opisy!A68,Opisy!A17),Opisy!A69)) -> <- OK | F19: WW16 | G19: =HLOOKUP('Obliczenia-dolny'!$B$44,'Obliczenia-dolny'!$L$1:$AI$46,13,FALSE) -> - | H19: =Opisy!$A$46 -> mm | I19: =Opisy!A59 -> Wys. wyp. 16mm
C20: =Opisy!A24 -> z (szer. zakładki) | D20: =HLOOKUP('Obliczenia-dolny'!$B$44,'Obliczenia-dolny'!$L$1:$AI$46,21,FALSE) -> 23 | F20: WW12 | G20: =HLOOKUP('Obliczenia-dolny'!$B$44,'Obliczenia-dolny'!$L$1:$AI$46,14,FALSE) -> - | H20: =Opisy!$A$46 -> mm | I20: =Opisy!A60 -> Wys. wyp. 12mm
C21: =Opisy!A25 -> Szczotka | F21: WW10 | G21: =HLOOKUP('Obliczenia-dolny'!$B$44,'Obliczenia-dolny'!$L$1:$AI$46,15,FALSE) -> 2600 | H21: =Opisy!$A$46 -> mm | I21: =Opisy!A61 -> Wys. wyp. 10mm
C22: =IF(D18-D19>1,Opisy!A73," ") ->  | F22: WW4 | G22: =HLOOKUP('Obliczenia-dolny'!$B$44,'Obliczenia-dolny'!$L$1:$AI$46,16,FALSE) -> 2599 | H22: =Opisy!$A$46 -> mm | I22: =Opisy!A62 -> Wys. wyp. 4mm
F23: DR | G23: =HLOOKUP('Obliczenia-dolny'!$B$44,'Obliczenia-dolny'!$L$1:$AI$46,17,FALSE) -> 2660 | H23: =Opisy!$A$46 -> mm | I23: =Opisy!A63 -> Długość rączki
F24: DLP | G24: =HLOOKUP('Obliczenia-dolny'!$B$44,'Obliczenia-dolny'!$L$1:$AI$46,18,FALSE) -> 970.3333333 | H24: =Opisy!$A$46 -> mm | I24: =Opisy!A64 -> Dł. listew poz.
F25: =IF(G25=Opisy!$E$1,Opisy!$E$2," ") ->  | G25: =IF(laczniki_tak,IF('Obliczenia-dolny'!$H$25=1,HLOOKUP(Wybrany_system,'Obliczenia-dolny'!$L$1:$AI$46,19,FALSE),IF(AND(System_z_grupy="B",Wybrany_lacznik=1),HLOOKUP('Obliczenia-dolny'!$B$44,'Obliczenia-dolny'!$L$1:$AI$46,19,FALSE),Opisy!$A$48)),HLOOKUP('Obliczenia-dolny'!$B$44,'Obliczenia-dolny'!$L$1:$AI$46,19,FALSE)) -> 18.83059 | H25: =Opisy!$A$67 -> kg | I25: =IF('Obliczenia-dolny'!$C$44='Obliczenia-dolny'!$B$11,Opisy!A74,Opisy!A65) -> Waga skrzydła z wypełnieniem z płyty
F26: =IF(G26=Opisy!$E$1,Opisy!$E$2," ") ->  | G26: =IF(laczniki_tak,IF('Obliczenia-dolny'!$H$25=1,HLOOKUP(Wybrany_system,'Obliczenia-dolny'!$L$1:$AI$46,20,FALSE),IF(AND(System_z_grupy="B",Wybrany_lacznik=1),HLOOKUP('Obliczenia-dolny'!$B$44,'Obliczenia-dolny'!$L$1:$AI$46,20,FALSE),Opisy!$A$48)),HLOOKUP('Obliczenia-dolny'!$B$44,'Obliczenia-dolny'!$L$1:$AI$46,20,FALSE)) -> 31.5675388 | H26: =Opisy!$A$67 -> kg | I26: =IF('Obliczenia-dolny'!$C$44='Obliczenia-dolny'!$B$11,Opisy!A75,Opisy!A66) -> Waga skrzydła z wypełnieniem ze szkła
C28: =Opisy!A26 -> Uwaga:
C29: =Opisy!A27 -> Proporcje skrzydeł dla montażu mechanizmu samodociągu: | F29: =IF('Obliczenia-dolny'!$L$6/'Obliczenia-dolny'!$L$5>3,Opisy!A29,Opisy!A30) -> Proporcje są OK
C30: =Opisy!A28 -> * - Waga skrzydła została wyliczona dla wypełnienia wykonanego z płyty wiórowej (620kg/m3) lub szkła zwykłego o grubości 4mm (2800kg/m3), bez łączeń.
E32: 6. | F32: =Opisy!A31 -> Łączniki
C35: =Opisy!A32 -> Obliczenia wysokości wypełnień łączonych
A52: 7. | C52: =Opisy!A33 -> Wybierz łącznik: | E52: =IF(OR(F25=Opisy!E2,F26=Opisy!E2),Opisy!E2," ") ->  | I52: =IF(AND('Obliczenia-dolny'!$D$6,'Obliczenia-dolny'!$G$25='Obliczenia-dolny'!$D$25),"↓18mm↓"," ") ->  | J52: =IF(AND('Obliczenia-dolny'!$D$6,'Obliczenia-dolny'!$G$25='Obliczenia-dolny'!D26),"↓16/12+4mm↓"," ") ->  | K52: =IF(AND('Obliczenia-dolny'!$D$6,'Obliczenia-dolny'!$G$25='Obliczenia-dolny'!D27),"↓18/4mm↓"," ") ->  | L52: =IF(AND('Obliczenia-dolny'!$D$6,'Obliczenia-dolny'!$G$25='Obliczenia-dolny'!D28),"↓10/4mm↓"," ") ->  | M52: =IF(AND('Obliczenia-dolny'!$D$6,'Obliczenia-dolny'!$G$25='Obliczenia-dolny'!D29),"↓FlatLine↓"," ") -> 
C54: =Opisy!A34 -> Równomierne rozłożenie łączników.
C55: =Opisy!A35 -> Jedna grubość wypełnienia
A56: 8. | C56: =Opisy!A36 -> i (ilość łączników) | F56: 2 | G56: =Opisy!$A$45 -> szt.
C57: =Opisy!A37 -> Liczba elementów składowych | F57: =IF('Obliczenia-dolny'!D6=TRUE,F56+1,"-") -> - | G57: =Opisy!$A$45 -> szt.
C58: =Opisy!A38 -> Elementy z płyty
C59: =Opisy!A39 -> Wys. wyp. z płyty bez łączników | F59: ='Obliczenia-dolny'!AK43 -> 2600 | G59: =Opisy!A46 -> mm
C60: =Opisy!A40 -> A (wys. elementów z płyty) | F60: ='Obliczenia-dolny'!AK44 -> - | G60: =G59 -> mm
C61: =Opisy!A42 -> Elementy ze szkła 4mm
C62: =Opisy!A43 -> Wys. wyp. 4mm bez łączników | F62: ='Obliczenia-dolny'!AK45 -> 2599 | G62: =Opisy!A46 -> mm
C63: =Opisy!A44 -> C (wys. elementów ze szkła 4mm) | F63: ='Obliczenia-dolny'!AK46 -> - | G63: =IF(AND('Obliczenia-dolny'!G25="C",'Obliczenia-dolny'!D6),Opisy!A47,Opisy!A46) -> mm
C64: =IF(AND('Obliczenia-dolny'!G25="C",'Obliczenia-dolny'!D6),Opisy!A50," ") -> 
M67: GTV Poland Sp. z o.o. Sp. k.
M68: ul. Przejazdowa 21, 05-800 Pruszków, Polska
M69: www.gtv.com.pl
M70: gtv.tech@gtv.com.pl

Sheet Obliczenia-dolny (hidden)
A1: 1 | B1: ERGO 18mm | D1: Wybór rozwiązania ze szczotką | I1: =L6/L5 -> 2.61382247 | K1: 1 | L1: 1 | M1: 4 | N1: 5 | O1: 13 | P1: 2 | Q1: 3 | R1: 12 | S1: 18 | T1: 19 | U1: 23 | V1: 24 | W1: 6 | X1: 14 | Y1: 7 | Z1: 8 | AA1: 15 | AB1: 9 | AC1: 16 | AD1: 10 | AE1: 17 | AF1: 20 | AG1: 21 | AH1: 22 | AI1: 11 | AJ1: 1 | AK1: Aktualnie wybrany system
A2: 2 | B2: NOVO II 18mm | D2: TRUE | F2: =IF(D2,3,0) -> 3 | G2: Tak | J2: rączka | K2: 2 | L2: ERGO | M2: NOVO | P2: NOVO II | T2: NOVO 10 | U2: 71 ARCO | V2: 85 FALDA | W2: VISTA | Y2: COTE | AB2: NERO | AD2: CARO | AF2: FORM | AG2: TRAFO | AH2: FlatLine | AI2: Mito/Mito+ | AJ2: 2
A3: 3 | B3: NOVO II 12+4mm | G3: Nie | J3: system | K3: 3 | L3: 18mm | M3: 18mm | N3: 16mm | O3: 18/4mm | P3: 18mm | Q3: 12+4mm | R3: - | S3: - | T3: 10/4mm | U3: 10/4mm | V3: =U3 -> 10/4mm | W3: 18mm | X3: 18/4mm | Y3: 18mm | Z3: 16mm | AA3: 18/4mm | AB3: 18mm | AC3: 18/4mm | AD3: 18mm | AE3: 18/4mm | AF3: 10/4mm | AG3: 10/4mm | AH3: 10/4mm | AI3: 10/4mm | AJ3: 3
A4: 4 | B4: NOVO S 18mm | J4: waga 1mb. [kg] | K4: 4 | L4: 0.219 | M4: 0.338 | N4: 0.338 | O4: 0.338 | P4: 0.332 | Q4: 0.332 | R4: - | S4: - | T4: 0.35 | U4: 0.418 | V4: 0.463 | W4: 0.38 | X4: 0.38 | Y4: 0.357 | Z4: 0.357 | AA4: 0.357 | AB4: 0.393 | AC4: 0.393 | AD4: 0.414 | AE4: 0.414 | AF4: 0.362 | AG4: 0.341 | AH4: 0.405 | AI4: 0 | AJ4: 4
A5: 5 | B5: NOVO S 16mm | D5: Łączniki | J5: SD | K5: 5 | L5: =IF($D$2,('Dolny układ jezdny'!$D$13-3+'Dolny układ jezdny'!$D$19*L21)/'Dolny układ jezdny'!$D$18,('Dolny układ jezdny'!$D$13+'Dolny układ jezdny'!$D$19*L21)/'Dolny układ jezdny'!$D$18) -> 1017.666667 | M5: =IF($D$2,('Dolny układ jezdny'!$D$13-3+'Dolny układ jezdny'!$D$19*M21)/'Dolny układ jezdny'!$D$18,('Dolny układ jezdny'!$D$13+'Dolny układ jezdny'!$D$19*M21)/'Dolny układ jezdny'!$D$18) -> 1021.666667 | N5: =IF($D$2,('Dolny układ jezdny'!$D$13-3+'Dolny układ jezdny'!$D$19*N21)/'Dolny układ jezdny'!$D$18,('Dolny układ jezdny'!$D$13+'Dolny układ jezdny'!$D$19*N21)/'Dolny układ jezdny'!$D$18) -> 1021.666667 | O5: =IF($D$2,('Dolny układ jezdny'!$D$13-3+'Dolny układ jezdny'!$D$19*O21)/'Dolny układ jezdny'!$D$18,('Dolny układ jezdny'!$D$13+'Dolny układ jezdny'!$D$19*O21)/'Dolny układ jezdny'!$D$18) -> 1021.666667 | P5: =IF($D$2,('Dolny układ jezdny'!$D$13-3+'Dolny układ jezdny'!$D$19*P21)/'Dolny układ jezdny'!$D$18,('Dolny układ jezdny'!$D$13+'Dolny układ jezdny'!$D$19*P21)/'Dolny układ jezdny'!$D$18) -> 1021.666667 | Q5: =IF($D$2,('Dolny układ jezdny'!$D$13-3+'Dolny układ jezdny'!$D$19*Q21)/'Dolny układ jezdny'!$D$18,('Dolny układ jezdny'!$D$13+'Dolny układ jezdny'!$D$19*Q21)/'Dolny układ jezdny'!$D$18) -> 1021.666667 | R5: - | S5: - | T5: =IF($D$2,('Dolny układ jezdny'!$D$13-3+'Dolny układ jezdny'!$D$19*T21)/'Dolny układ jezdny'!$D$18,('Dolny układ jezdny'!$D$13+'Dolny układ jezdny'!$D$19*T21)/'Dolny układ jezdny'!$D$18) -> 1019 | U5: =IF($D$2,('Dolny układ jezdny'!$D$13-3+'Dolny układ jezdny'!$D$19*U21)/'Dolny układ jezdny'!$D$18,('Dolny układ jezdny'!$D$13+'Dolny układ jezdny'!$D$19*U21)/'Dolny układ jezdny'!$D$18) -> 1020.333333 | V5: =IF($D$2,('Dolny układ jezdny'!$D$13-3+'Dolny układ jezdny'!$D$19*V21)/'Dolny układ jezdny'!$D$18,('Dolny układ jezdny'!$D$13+'Dolny układ jezdny'!$D$19*V21)/'Dolny układ jezdny'!$D$18) -> 1020.333333 | W5: =IF($D$2,('Dolny układ jezdny'!$D$13-3+'Dolny układ jezdny'!$D$19*W21)/'Dolny układ jezdny'!$D$18,('Dolny układ jezdny'!$D$13+'Dolny układ jezdny'!$D$19*W21)/'Dolny układ jezdny'!$D$18) -> 1019 | X5: =IF($D$2,('Dolny układ jezdny'!$D$13-3+'Dolny układ jezdny'!$D$19*X21)/'Dolny układ jezdny'!$D$18,('Dolny układ jezdny'!$D$13+'Dolny układ jezdny'!$D$19*X21)/'Dolny układ jezdny'!$D$18) -> 1019 | Y5: =IF($D$2,('Dolny układ jezdny'!$D$13-3+'Dolny układ jezdny'!$D$19*Y21)/'Dolny układ jezdny'!$D$18,('Dolny układ jezdny'!$D$13+'Dolny układ jezdny'!$D$19*Y21)/'Dolny układ jezdny'!$D$18) -> 1018.333333 | Z5: =IF($D$2,('Dolny układ jezdny'!$D$13-3+'Dolny układ jezdny'!$D$19*Z21)/'Dolny układ jezdny'!$D$18,('Dolny układ jezdny'!$D$13+'Dolny układ jezdny'!$D$19*Z21)/'Dolny układ jezdny'!$D$18) -> 1018.333333 | AA5: =IF($D$2,('Dolny układ jezdny'!$D$13-3+'Dolny układ jezdny'!$D$19*AA21)/'Dolny układ jezdny'!$D$18,('Dolny układ jezdny'!$D$13+'Dolny układ jezdny'!$D$19*AA21)/'Dolny układ jezdny'!$D$18) -> 1018.333333 | AB5: =IF($D$2,('Dolny układ jezdny'!$D$13-3+'Dolny układ jezdny'!$D$19*AB21)/'Dolny układ jezdny'!$D$18,('Dolny układ jezdny'!$D$13+'Dolny układ jezdny'!$D$19*AB21)/'Dolny układ jezdny'!$D$18) -> 1018.333333 | AC5: =IF($D$2,('Dolny układ jezdny'!$D$13-3+'Dolny układ jezdny'!$D$19*AC21)/'Dolny układ jezdny'!$D$18,('Dolny układ jezdny'!$D$13+'Dolny układ jezdny'!$D$19*AC21)/'Dolny układ jezdny'!$D$18) -> 1018.333333 | AD5: =IF($D$2,('Dolny układ jezdny'!$D$13-3+'Dolny układ jezdny'!$D$19*AD21)/'Dolny układ jezdny'!$D$18,('Dolny układ jezdny'!$D$13+'Dolny układ jezdny'!$D$19*AD21)/'Dolny układ jezdny'!$D$18) -> 1021.666667 | AE5: =IF($D$2,('Dolny układ jezdny'!$D$13-3+'Dolny układ jezdny'!$D$19*AE21)/'Dolny układ jezdny'!$D$18,('Dolny układ jezdny'!$D$13+'Dolny układ jezdny'!$D$19*AE21)/'Dolny układ jezdny'!$D$18) -> 1021.666667 | AF5: =IF($D$2,('Dolny układ jezdny'!$D$13-3+'Dolny układ jezdny'!$D$19*AF21)/'Dolny układ jezdny'!$D$18,('Dolny układ jezdny'!$D$13+'Dolny układ jezdny'!$D$19*AF21)/'Dolny układ jezdny'!$D$18) -> 1014.333333 | AG5: =IF($D$2,('Dolny układ jezdny'!$D$13-3+'Dolny układ jezdny'!$D$19*AG21)/'Dolny układ jezdny'!$D$18,('Dolny układ jezdny'!$D$13+'Dolny układ jezdny'!$D$19*AG21)/'Dolny układ jezdny'!$D$18) -> 1019 | AH5: =IF($D$2,('Dolny układ jezdny'!$D$13-3+'Dolny układ jezdny'!$D$19*AH21)/'Dolny układ jezdny'!$D$18,('Dolny układ jezdny'!$D$13+'Dolny układ jezdny'!$D$19*AH21)/'Dolny układ jezdny'!$D$18) -> 1017.666667 | AI5: =IF($D$2,('Dolny układ jezdny'!$D$13-3+'Dolny układ jezdny'!$D$19*AI21)/'Dolny układ jezdny'!$D$18,('Dolny układ jezdny'!$D$13+'Dolny układ jezdny'!$D$19*AI21)/'Dolny układ jezdny'!$D$18) -> 1019 | AJ5: 5 | AK5: ='Dolny układ jezdny'!G11 -> 1014.333333
A6: 6 | B6: VISTA 18mm | D6: FALSE | F6: TAK/NIE | J6: WD | K6: 6 | L6: ='Dolny układ jezdny'!$D$12-40 -> 2660 | M6: ='Dolny układ jezdny'!$D$12-40 -> 2660 | N6: ='Dolny układ jezdny'!$D$12-40 -> 2660 | O6: ='Dolny układ jezdny'!$D$12-40 -> 2660 | P6: ='Dolny układ jezdny'!$D$12-40 -> 2660 | Q6: ='Dolny układ jezdny'!$D$12-40 -> 2660 | R6: - | S6: - | T6: ='Dolny układ jezdny'!$D$12-40 -> 2660 | U6: ='Dolny układ jezdny'!$D$12-40 -> 2660 | V6: ='Dolny układ jezdny'!$D$12-40 -> 2660 | W6: ='Dolny układ jezdny'!$D$12-40 -> 2660 | X6: ='Dolny układ jezdny'!$D$12-40 -> 2660 | Y6: ='Dolny układ jezdny'!$D$12-40 -> 2660 | Z6: ='Dolny układ jezdny'!$D$12-40 -> 2660 | AA6: ='Dolny układ jezdny'!$D$12-40 -> 2660 | AB6: ='Dolny układ jezdny'!$D$12-40 -> 2660 | AC6: ='Dolny układ jezdny'!$D$12-40 -> 2660 | AD6: ='Dolny układ jezdny'!$D$12-40 -> 2660 | AE6: ='Dolny układ jezdny'!$D$12-40 -> 2660 | AF6: ='Dolny układ jezdny'!$D$12-40 -> 2660 | AG6: ='Dolny układ jezdny'!$D$12-40 -> 2660 | AH6: ='Dolny układ jezdny'!$D$12-40 -> 2660 | AI6: ='Dolny układ jezdny'!$D$12-12 -> 2688 | AJ6: 6 | AK6: ='Dolny układ jezdny'!G12 -> 2660
A7: 7 | B7: COTE 18mm | D7: Wybór łącznika | J7: SW18 | K7: 7 | L7: =L5-7 -> 1010.666667 | M7: =M5-36 -> 985.6666667 | N7: - | O7: =O5-36 -> 985.6666667 | P7: =P5-30 -> 991.6666667 | Q7: - | R7: - | S7: - | T7: - | U7: - | V7: - | W7: =W5-31 -> 988 | X7: =X5-31 -> 988 | Y7: =Y5-36 -> 982.3333333 | Z7: - | AA7: =AA5-36 -> 982.3333333 | AB7: =AB5-31 -> 987.3333333 | AC7: =AC5-31 -> 987.3333333 | AD7: =AD5-31 -> 990.6666667 | AE7: =AE5-31 -> 990.6666667 | AF7: - | AG7: - | AH7: - | AI7: =AI5 -> 1019 | AJ7: 7 | AK7: ='Dolny układ jezdny'!G13 -> -
A8: 8 | B8: COTE 16mm | E8: 8 | F8: A-T18-300-XX | G8: 1 | H8: A | J8: SW16 | K8: 8 | L8: - | M8: - | N8: =N5-21 -> 1000.666667 | O8: - | P8: - | Q8: - | R8: - | S8: - | T8: - | U8: - | V8: - | W8: - | X8: - | Y8: - | Z8: =Z5-21 -> 997.3333333 | AA8: - | AB8: =W8 -> - | AC8: =X8 -> - | AD8: - | AE8: - | AF8: - | AG8: - | AH8: - | AI8: =AI5 -> 1019 | AJ8: 8 | AK8: ='Dolny układ jezdny'!G14 -> -
A9: 9 | B9: NERO 18mm | F9: A-H18-300-XX | G9: 2 | H9: A | J9: SW12 | K9: 9 | L9: - | M9: - | N9: - | O9: - | P9: - | Q9: =Q5-7 -> 1014.666667 | R9: - | S9: - | T9: - | U9: - | V9: - | W9: - | X9: - | Y9: - | Z9: - | AA9: - | AB9: - | AC9: - | AD9: - | AE9: - | AF9: - | AG9: - | AH9: - | AI9: - | AJ9: 9 | AK9: ='Dolny układ jezdny'!G15 -> -
A10: 10 | B10: CARO 18mm | F10: A-H16-300-XX | G10: 3 | H10: B | J10: SW10 | K10: 10 | L10: - | M10: - | N10: - | O10: - | P10: - | Q10: - | R10: - | S10: - | T10: =T5-21 -> 998 | U10: =U5-43 -> 977.3333333 | V10: =V5-43 -> 977.3333333 | W10: - | X10: - | Y10: - | Z10: - | AA10: - | AB10: - | AC10: - | AD10: - | AE10: - | AF10: =AF5-27 -> 987.3333333 | AG10: =AG5-21 -> 998 | AH10: =AH5-36 -> 981.6666667 | AI10: - | AJ10: 10 | AK10: ='Dolny układ jezdny'!G16 -> 987.3333333
A11: 11 | B11: MITO/MITO PLUS | D11: - | F11: A-HRS18-YYY-XX | G11: 4 | H11: C | J11: SW4 | K11: 11 | L11: - | M11: - | N11: - | O11: =O5-24 -> 997.6666667 | P11: - | Q11: =Q5-32 -> 989.6666667 | R11: - | S11: - | T11: =T5-24 -> 995 | U11: =U10-3 -> 974.3333333 | V11: =V10-3 -> 974.3333333 | W11: - | X11: =X5-23 -> 996 | Y11: - | Z11: - | AA11: =AA5-23 -> 995.3333333 | AB11: - | AC11: =AC5-23 -> 995.3333333 | AD11: - | AE11: =AE5-23 -> 998.6666667 | AF11: =AF5-30 -> 984.3333333 | AG11: =AG5-24 -> 995 | AH11: =AH5-39 -> 978.6666667 | AI11: - | AJ11: 11 | AK11: ='Dolny układ jezdny'!G17 -> 984.3333333
A12: 12 | B12: =Opisy!A71 -> ------RAMOWE 18mm-------------- | D12: - | F12: A-HR18-300-XX | G12: 5 | H12: C | J12: WW18 | K12: 12 | L12: =L6-3 -> 2657 | M12: =M6-3 -> 2657 | N12: - | O12: =O6-69 -> 2591 | P12: =P6-3 -> 2657 | Q12: - | R12: - | S12: - | T12: - | U12: - | V12: - | W12: =M12 -> 2657 | X12: =O12 -> 2591 | Y12: =W12 -> 2657 | Z12: - | AA12: =X12 -> 2591 | AB12: 2657 | AC12: 2591 | AD12: =W12 -> 2657 | AE12: =X12 -> 2591 | AF12: - | AG12: - | AH12: - | AI12: =AI6 -> 2688 | AJ12: 12 | AK12: ='Dolny układ jezdny'!G18 -> -
A13: 13 | B13: NOVO S 18/4mm | D13: - | F13: A-HRS10-YYY-XX | G13: 6 | H13: D | J13: WW16 | K13: 13 | L13: - | M13: - | N13: =N6-3 -> 2657 | O13: - | P13: - | Q13: - | R13: - | S13: - | T13: - | U13: - | V13: - | W13: - | X13: - | Y13: - | Z13: =N13 -> 2657 | AA13: - | AB13: - | AC13: - | AD13: - | AE13: - | AF13: - | AG13: - | AH13: - | AI13: =AI6 -> 2688 | AJ13: 13 | AK13: ='Dolny układ jezdny'!G19 -> -
A14: 14 | B14: VISTA 18/4mm | F14: A-HR10-YYY-XX | G14: 7 | H14: D | J14: WW12 | K14: 14 | L14: - | M14: - | N14: - | O14: - | P14: - | Q14: =Q6-3 -> 2657 | R14: - | S14: - | T14: - | U14: - | V14: - | W14: - | X14: - | Y14: - | Z14: - | AA14: - | AB14: - | AC14: - | AD14: - | AE14: - | AF14: - | AG14: - | AH14: - | AI14: - | AJ14: 14 | AK14: ='Dolny układ jezdny'!G20 -> -
A15: 15 | B15: COTE 18/4mm | F15: A-HR10FL-YYY-XX | G15: 8 | H15: E | J15: WW10 | K15: 15 | L15: - | M15: - | N15: - | O15: - | P15: - | Q15: - | R15: - | S15: - | T15: =T6-60 -> 2600 | U15: =T15 -> 2600 | V15: =U15 -> 2600 | W15: - | X15: - | Y15: - | Z15: - | AA15: - | AB15: - | AC15: - | AD15: - | AE15: - | AF15: =AF6-60 -> 2600 | AG15: =AG6-60 -> 2600 | AH15: =AH6-5 -> 2655 | AI15: - | AJ15: 15 | AK15: ='Dolny układ jezdny'!G21 -> 2600
A16: 16 | B16: NERO 18/4mm | J16: WW4 | K16: 16 | L16: - | M16: - | N16: - | O16: =O6-61 -> 2599 | P16: - | Q16: =Q6-5 -> 2655 | R16: - | S16: - | T16: =T6-61 -> 2599 | U16: =T16 -> 2599 | V16: =U16 -> 2599 | W16: - | X16: =O16 -> 2599 | Y16: - | Z16: - | AA16: =X16 -> 2599 | AB16: - | AC16: 2599 | AD16: - | AE16: 2599 | AF16: =AF6-61 -> 2599 | AG16: =AG6-61 -> 2599 | AH16: =AH6-6 -> 2654 | AI16: - | AJ16: 16 | AK16: ='Dolny układ jezdny'!G22 -> 2599
A17: 17 | B17: CARO 18/4mm | J17: DR | K17: 17 | L17: =L6 -> 2660 | M17: 2660 | N17: 2660 | O17: 2660 | P17: 2660 | Q17: 2660 | R17: - | S17: - | T17: 2660 | U17: 2660 | V17: 2660 | W17: 2660 | X17: 2660 | Y17: 2660 | Z17: 2660 | AA17: 2660 | AB17: 2660 | AC17: 2660 | AD17: 2660 | AE17: 2660 | AF17: =AF6 -> 2660 | AG17: 2660 | AH17: 2660 | AI17: - | AJ17: 17 | AK17: ='Dolny układ jezdny'!G23 -> 2660
A18: 18 | B18: =Opisy!A72 -> ------RAMOWE 10mm-------------- | J18: DLP | K18: 18 | L18: =L5-53 -> 964.6666667 | M18: =M5-52 -> 969.6666667 | N18: =N5-52 -> 969.6666667 | O18: =O5-52 -> 969.6666667 | P18: =P5-52 -> 969.6666667 | Q18: =Q5-52 -> 969.6666667 | R18: - | S18: - | T18: =T5-38 -> 981 | U18: =U10-17 -> 960.3333333 | V18: =V10-17 -> 960.3333333 | W18: =W5-55 -> 964 | X18: =X5-55 -> 964 | Y18: =Y5-52 -> 966.3333333 | Z18: =Z5-52 -> 966.3333333 | AA18: 966.3333333 | AB18: =AB5-55 -> 963.3333333 | AC18: 963.3333333 | AD18: 966.6666667 | AE18: =AE5-55 -> 966.6666667 | AF18: =AF5-44 -> 970.3333333 | AG18: =AG5-38 -> 981 | AH18: =AH5-53 -> 964.6666667 | AI18: - | AJ18: 18 | AK18: ='Dolny układ jezdny'!G24 -> 970.3333333
A19: 19 | B19: NOVO 10/4mm | J19: Skrzydło na płycie [kg] | K19: 19 | L19: =L22+SUM(L29:L41) -> 31.66886795 | M19: =M22+SUM(M29:M41) -> 31.56186495 | N19: =N22+SUM(N29:N41) -> 28.70977029 | O19: =O22+SUM(O29:O41) -> 31.37693631 | P19: =P22+SUM(P29:P41) -> 31.70785767 | Q19: - | R19: - | S19: - | T19: =T22+SUM(T29:T41) -> 18.94627 | U19: 18.96021 | V19: 19.19961 | W19: 31.85311056 | X19: 31.66330128 | Y19: 31.56329121 | Z19: 32.00807301 | AA19: 30.60395844 | AB19: =AB22+SUM(AB29:AB41) -> 31.90233981 | AC19: =AC22+SUM(AC29:AC41) -> 31.71264957 | AD19: 32.11371355 | AE19: 31.92342811 | AF19: =AF22+SUM(AF29:AF41) -> 18.83059 | AG19: 18.89839 | AH19: 19.33056233 | AI19: =AI22+SUM(AI29:AI41) -> 30.96804352 | AJ19: 19 | AK19: ='Dolny układ jezdny'!G25 -> 18.83059
A20: 20 | B20: FORM 10/4mm | J20: Skrzydło na szkle [kg] | K20: 20 | L20: - | M20: - | N20: - | O20: =O23+SUM(O29:O41) -> 31.91671213 | P20: - | Q20: =Q22+Q23+SUM(Q29:Q41) -> 51.78957851 | R20: - | S20: - | T20: =T23+SUM(T29:T41) -> 31.821766 | U20: =U23+SUM(U29:U41) -> 31.5672708 | V20: =V23+SUM(V29:V41) -> 31.8066708 | W20: - | X20: =X23+SUM(X29:X41) -> 32.0870928 | Y20: - | Z20: - | AA20: =AA23+SUM(AA29:AA41) -> 31.17219893 | AB20: - | AC20: =AC23+SUM(AC29:AC41) -> 32.13631227 | AD20: - | AE20: =AE23+SUM(AE29:AE41) -> 32.34773493 | AF20: =AF23+SUM(AF29:AF41) -> 31.5675388 | AG20: =AG23+SUM(AG29:AG41) -> 31.773886 | AH20: =AH23+SUM(AH29:AH41) -> 32.26201827 | AI20: =AI23+SUM(AI29:AI41) -> 27.57159424 | AJ20: 20 | AK20: ='Dolny układ jezdny'!G26 -> 31.5675388
A21: 21 | B21: TRAFO 10/4mm | J21: Szerokość zakładki | K21: 21 | L21: 28 | M21: 34 | N21: 34 | O21: 34 | P21: 34 | Q21: 34 | R21: - | S21: - | T21: 30 | U21: 32 | V21: 32 | W21: 30 | X21: 30 | Y21: 29 | Z21: 29 | AA21: 29 | AB21: 29 | AC21: 29 | AD21: 34 | AE21: 34 | AF21: 23 | AG21: 30 | AH21: 28 | AI21: 30 | AJ21: 21 | AK21: =HLOOKUP($B$44,$L$1:$AI$46,AJ21,FALSE) -> 23
A22: 22 | B22: FLAT LINE 10/4mm | J22: Waga wypełnienia z płyty | K22: 22 | L22: =L7*L12*18*$L$25/1000000000 -> 29.96840928 | M22: =M7*M12*18*$L$25/1000000000 -> 29.22710628 | N22: =N8*N13*16*$L$25/1000000000 -> 26.37501163 | O22: =O7*O12*18*$L$25/1000000000 -> 28.50110364 | P22: =P7*P12*18*$L$25/1000000000 -> 29.405019 | Q22: =Q9*Q14*12*$L$25/1000000000 -> 20.05801184 | R22: - | S22: - | T22: =T10*T15*10*$L$25/1000000000 -> 16.08776 | U22: =U10*U15*10*$L$25/1000000000 -> 15.75461333 | V22: =V10*V15*10*$L$25/1000000000 -> 15.75461333 | W22: =W7*W12*18*$L$25/1000000000 -> 29.29629456 | X22: =X7*X12*18*$L$25/1000000000 -> 28.56857328 | Y22: =Y7*Y12*18*$L$25/1000000000 -> 29.12826588 | Z22: =Z8*Z13*18*$L$25/1000000000 -> 29.57304768 | AA22: =AA7*AA12*18*$L$25/1000000000 -> 28.40471844 | AB22: =AB7*AB12*18*$L$25/1000000000 -> 29.27652648 | AC22: =AC7*AC12*18*$L$25/1000000000 -> 28.54929624 | AD22: =AD7*AD12*18*$L$25/1000000000 -> 29.37536688 | AE22: =AE7*AE12*18*$L$25/1000000000 -> 28.64568144 | AF22: =AF10*AF15*10*$L$25/1000000000 -> 15.91581333 | AG22: =AG10*AG15*10*$L$25/1000000000 -> 16.08776 | AH22: =AH10*AH15*10*$L$25/1000000000 -> 16.159215 | AI22: =AI7*AI12*18*$L$25/1000000000 -> 30.56804352 | AJ22: 22 | AK22: =HLOOKUP($B$44,$L$1:$AI$46,AJ22,FALSE) -> 15.91581333
A23: 23 | B23: ARCO 10/4mm | D23: Warunek poprawnego wyboru łącznika | J23: Waga wypełnienia ze szkła | K23: 23 | L23: - | M23: - | N23: - | O23: =O11*O16*4*$L$27/1000000000 -> 29.04087947 | P23: - | Q23: =Q11*Q16*4*$L$27/1000000000 -> 29.428728 | R23: - | S23: - | T23: =T11*T16*4*$L$27/1000000000 -> 28.963256 | U23: =U11*U16*4*$L$27/1000000000 -> 28.36167413 | V23: =V11*V16*4*$L$27/1000000000 -> 28.36167413 | W23: - | X23: =X11*X16*4*$L$27/1000000000 -> 28.9923648 | Y23: - | Z23: - | AA23: =AA11*AA16*4*$L$27/1000000000 -> 28.97295893 | AB23: - | AC23: =AC11*AC16*4*$L$27/1000000000 -> 28.97295893 | AD23: - | AE23: =AE11*AE16*4*$L$27/1000000000 -> 29.06998827 | AF23: =AF11*AF16*4*$L$27/1000000000 -> 28.65276213 | AG23: =AG11*AG16*4*$L$27/1000000000 -> 28.963256 | AH23: =AH11*AH16*4*$L$27/1000000000 -> 29.09067093 | AI23: =AI8*AI13*16*$L$25/1000000000 -> 27.17159424 | AJ23: 23 | AK23: =HLOOKUP($B$44,$L$1:$AI$46,AJ23,FALSE) -> 28.65276213
A24: 24 | B24: FALDA 10/4mm | D24: Grupy łączników | F24: Łącznik z grupy: | G24: System z grupy: | H24: Test | K24: 24 | L24: Płyta wiórowa - wga 1m3 [kg] | AJ24: 24
D25: A | E25: 18mm | F25: =VLOOKUP(E8,G8:H15,2,FALSE) -> E | G25: =HLOOKUP(B44,$L$1:$AI$42,42,FALSE) -> D | H25: =IF(F25=G25,1,IF(AND(Lacznik_z_grupy=D29,System_z_grupy=T42),1,0)) -> 1 | K25: 25 | L25: 620 | AJ25: 25
D26: B | E26: 16 (12+4)mm | K26: 26 | L26: Szkło 4mm - waga 1m3 [kg] | AJ26: 26
D27: C | E27: 18/4mm | K27: 27 | L27: 2800 | AJ27: 27
D28: D | E28: 10/4mm | F28: LICZBA ŁĄCZNIKÓW | G28: ='Dolny układ jezdny'!F56 -> 2 | K28: 28 | L28: Okucia - waga 1 kpl. | AJ28: 28
D29: E | E29: FlatLine | K29: 29 | L29: 0.3 | M29: 0.3 | N29: 0.3 | O29: 0.3 | P29: 0.3 | Q29: 0.3 | R29: - | S29: - | T29: 0.3 | U29: 0.3 | V29: 0.3 | W29: 0.3 | X29: 0.3 | Y29: 0.3 | Z29: 0.3 | AA29: 0.3 | AB29: 0.3 | AC29: 0.3 | AD29: 0.3 | AE29: 0.3 | AF29: 0.3 | AG29: 0.3 | AH29: 0.3 | AI29: 0.4 | AJ29: 29 | AK29: =HLOOKUP($B$44,$L$1:$AI$46,AJ29,FALSE) -> 0.3
K30: 30 | L30: Aluminium | AJ30: 30
I31: LG18 | J31: 0.257 | K31: 31 | L31: - | M31: - | N31: - | O31: =J31*$O$18/1000 -> 0.2492043333 | P31: - | Q31: - | R31: - | S31: - | T31: - | U31: - | V31: - | W31: - | X31: =X18*$J$31/1000 -> 0.247748 | Y31: - | Z31: - | AA31: - | AB31: - | AC31: =AC18*$J$31/1000 -> 0.2475766667 | AD31: - | AE31: =AE18*$J$31/1000 -> 0.2484333333 | AF31: - | AG31: - | AH31: - | AI31: - | AJ31: 31 | AK31: =HLOOKUP($B$44,$L$1:$AI$46,AJ31,FALSE) -> -
I32: LD18 | J32: 0.545 | K32: 32 | L32: - | M32: - | N32: - | O32: =J32*$O$18/1000 -> 0.5284683333 | P32: - | Q32: - | R32: - | S32: - | T32: - | U32: - | V32: - | W32: - | X32: =X18*$J$32/1000 -> 0.52538 | Y32: - | Z32: - | AA32: - | AB32: - | AC32: =AC18*$J$32/1000 -> 0.5250166667 | AD32: - | AE32: =AE18*$J$32/1000 -> 0.5268333333 | AF32: - | AG32: - | AH32: - | AI32: - | AJ32: 32 | AK32: =HLOOKUP($B$44,$L$1:$AI$46,AJ32,FALSE) -> -
I33: LG10 | J33: 0.236 | K33: 33 | L33: - | M33: - | N33: - | O33: - | P33: - | Q33: - | R33: - | S33: - | T33: =T18*$J$33/1000 -> 0.231516 | U33: =U18*$J$33/1000 -> 0.2266386667 | V33: =V18*$J$33/1000 -> 0.2266386667 | W33: - | X33: - | Y33: - | Z33: - | AA33: - | AB33: - | AC33: - | AD33: - | AE33: - | AF33: =AF18*$J$33/1000 -> 0.2289986667 | AG33: =AG18*$J$33/1000 -> 0.231516 | AH33: =AH18*0.249/1000 -> 0.240202 | AI33: - | AJ33: 33 | AK33: 0.2289986667
I34: LD10 | J34: 0.474 | K34: 34 | L34: - | M34: - | N34: - | O34: - | P34: - | Q34: - | R34: - | S34: - | T34: =T18*$J$34/1000 -> 0.464994 | U34: =U18*$J$34/1000 -> 0.455198 | V34: =V18*$J$34/1000 -> 0.455198 | W34: - | X34: - | Y34: - | Z34: - | AA34: - | AB34: - | AC34: - | AD34: - | AE34: - | AF34: =AF18*$J$34/1000 -> 0.459938 | AG34: =AG18*$J$34/1000 -> 0.464994 | AH34: =AH18*0.494/1000 -> 0.4765453333 | AI34: - | AJ34: 34 | AK34: 0.459938
I35: HRS10 | J35: 0.268 | K35: 35 | L35: - | M35: - | N35: - | O35: - | P35: - | Q35: - | R35: - | S35: - | T35: =IF(AND($D$6,$E$8=6),$J$35*$G$28*T18/1000,0) -> 0 | U35: =IF(AND($D$6,$E$8=6),$J$35*$G$28*U18/1000,0) -> 0 | V35: =IF(AND($D$6,$E$8=6),$J$35*$G$28*V18/1000,0) -> 0 | W35: - | X35: - | Y35: - | Z35: - | AA35: - | AB35: - | AC35: - | AD35: - | AE35: - | AF35: =IF(AND($D$6,$E$8=6),$J$35*$G$28*AF18/1000,0) -> 0 | AG35: =IF(AND($D$6,$E$8=6),$J$35*$G$28*AG18/1000,0) -> 0 | AH35: - | AI35: - | AJ35: 35 | AK35: 0
I36: HR10 lub HR10FL | J36: 0.185 | K36: 36 | L36: - | M36: - | N36: - | O36: - | P36: - | Q36: - | R36: - | S36: - | T36: =IF(AND($D$6,$E$8=7),$J$36*$G$28*T18/1000,IF(AND(laczniki_tak,Wybrany_lacznik=$G$15),0.75*$J$36*T18*l._lacznikow/1000,0)) -> 0 | U36: =IF(AND($D$6,$E$8=7),$J$36*$G$28*U18/1000,IF(AND(laczniki_tak,Wybrany_lacznik=$G$15),0.75*$J$36*U18*l._lacznikow/1000,0)) -> 0 | V36: =IF(AND($D$6,$E$8=7),$J$36*$G$28*V18/1000,IF(AND(laczniki_tak,Wybrany_lacznik=$G$15),0.75*$J$36*V18*l._lacznikow/1000,0)) -> 0 | W36: - | X36: - | Y36: - | Z36: - | AA36: - | AB36: - | AC36: - | AD36: - | AE36: - | AF36: =IF(AND($D$6,$E$8=7),$J$36*$G$28*AF18/1000,IF(AND(laczniki_tak,Wybrany_lacznik=$G$15),0.75*$J$36*AF18*l._lacznikow/1000,0)) -> 0 | AG36: =IF(AND($D$6,$E$8=7),$J$36*$G$28*AG18/1000,IF(AND(laczniki_tak,Wybrany_lacznik=$G$15),0.75*$J$36*AG18*l._lacznikow/1000,0)) -> 0 | AH36: =IF(AND($D$6,$E$8=8),0.75*$J$36*$G$28*AH18/1000,0) -> 0 | AI36: - | AJ36: 36 | AK36: 0
I37: C | J37: 0.122 | K37: 37 | L37: =2*$J$37*L18/1000 -> 0.2353786667 | M37: =2*$J$37*M18/1000 -> 0.2365986667 | N37: =2*$J$37*N18/1000 -> 0.2365986667 | O37: - | P37: =2*$J$37*P18/1000 -> 0.2365986667 | Q37: =2*$J$37*Q18/1000 -> 0.2365986667 | R37: - | S37: - | T37: - | U37: - | V37: - | W37: =2*$J$37*W18/1000 -> 0.235216 | X37: - | Y37: =2*$J$37*Y18/1000 -> 0.2357853333 | Z37: =2*$J$37*Z18/1000 -> 0.2357853333 | AA37: - | AB37: =2*$J$37*AB18/1000 -> 0.2350533333 | AC37: - | AD37: =2*$J$37*AD18/1000 -> 0.2358666667 | AE37: - | AF37: - | AG37: - | AH37: - | AI37: - | AJ37: 37 | AK37: -
I38: łącznik HRS18 | J38: 0.348 | K38: 38 | L38: - | M38: - | N38: - | O38: =IF(AND($D$6,$E$8=4),$J$38*$G$28*O18/1000,0) -> 0 | P38: - | Q38: - | R38: - | S38: - | T38: - | U38: - | V38: - | W38: - | X38: =IF(AND($D$6,$E$8=4),$J$38*$G$28*X18/1000,0) -> 0 | Y38: - | Z38: - | AA38: =IF(AND($D$6,$E$8=4),$J$38*$G$28*AA18/1000,0) -> 0 | AB38: - | AC38: =IF(AND($D$6,$E$8=4),$J$38*$G$28*AC18/1000,0) -> 0 | AD38: - | AE38: =IF(AND($D$6,$E$8=4),$J$38*$G$28*AE18/1000,0) -> 0 | AF38: - | AG38: - | AH38: - | AI38: - | AJ38: 38 | AK38: -
I39: łącznik HR18 | J39: 0.209 | K39: 39 | L39: - | M39: - | N39: - | O39: =IF(AND($D$6,$E$8=5),$J$39*$G$28*O18/1000,0) -> 0 | P39: - | Q39: - | R39: - | S39: - | T39: - | U39: - | V39: - | W39: - | X39: =IF(AND($D$6,$E$8=5),$J$39*$G$28*X18/1000,0) -> 0 | Y39: - | Z39: - | AA39: =IF(AND($D$6,$E$8=5),$J$39*$G$28*AA18/1000,0) -> 0 | AB39: - | AC39: =IF(AND($D$6,$E$8=5),$J$39*$G$28*AC18/1000,0) -> 0 | AD39: - | AE39: =IF(AND($D$6,$E$8=5),$J$39*$G$28*AE18/1000,0) -> 0 | AF39: - | AG39: - | AH39: - | AI39: - | AJ39: 39 | AK39: -
I40: łącznik H18 | J40: 0.112 | K40: 40 | L40: =IF(AND($D$6,$E$8<3),$J$40*$G$28*L18/1000,0) -> 0 | M40: =IF(AND($D$6,$E$8<3),$J$40*$G$28*M18/1000,0) -> 0 | N40: =IF(AND($D$6,OR($E$8=3,$E$8=1)),$J$40*$G$28*N18/1000,0) -> 0 | P40: =IF(AND($D$6,$E$8<3),$J$40*$G$28*P18/1000,0) -> 0 | Q40: =IF(AND($D$6,OR($E$8=3,$E$8=1)),$J$40*$G$28*Q18/1000,0) -> 0 | R40: - | S40: - | W40: =IF(AND($D$6,$E$8<3),$J$40*$G$28*W18/1000,0) -> 0 | Y40: =IF(AND($D$6,$E$8<3),$J$40*$G$28*Y18/1000,0) -> 0 | Z40: =IF(AND($D$6,OR($E$8=3,$E$8=1)),$J$40*$G$28*Z18/1000,0) -> 0 | AB40: =IF(AND($D$6,$E$8<3),$J$40*$G$28*AB18/1000,0) -> 0 | AD40: =IF(AND($D$6,$E$8<3),$J$40*$G$28*AD18/1000,0) -> 0 | AH40: - | AI40: - | AJ40: 40 | AK40: 0
I41: Rączka | K41: 41 | L41: =2*L4*L17/1000 -> 1.16508 | M41: =2*M4*M17/1000 -> 1.79816 | N41: 1.79816 | O41: 1.79816 | P41: 1.76624 | Q41: 1.76624 | R41: - | S41: - | T41: 1.862 | U41: 2.22376 | V41: 2.46316 | W41: 2.0216 | X41: 2.0216 | Y41: 1.89924 | Z41: 1.89924 | AA41: 1.89924 | AB41: =2*AB4*AB17/1000 -> 2.09076 | AC41: 2.09076 | AD41: 2.20248 | AE41: 2.20248 | AF41: 1.92584 | AG41: 1.81412 | AH41: 2.1546 | AI41: - | AJ41: 41 | AK41: 1.92584
I42: System należy do grupy łączników | K42: 42 | L42: A | M42: A | N42: B | O42: C | P42: A | Q42: B | R42: - | S42: - | T42: D | U42: D | V42: D | W42: A | X42: C | Y42: A | Z42: B | AA42: C | AB42: A | AC42: C | AD42: A | AE42: C | AF42: D | AG42: D | AH42: E | AI42: F | AJ42: 42 | AK42: D
I43: Wys. wyp. z płyty bez łączników | K43: 43 | L43: =L12 -> 2657 | M43: =M12 -> 2657 | N43: =N13 -> 2657 | O43: =O12 -> 2591 | P43: =P12 -> 2657 | Q43: =Q14 -> 2657 | R43: - | S43: - | T43: =T15 -> 2600 | U43: =U15 -> 2600 | V43: =V15 -> 2600 | W43: =W12 -> 2657 | X43: =X12 -> 2591 | Y43: =Y12 -> 2657 | Z43: =Z13 -> 2657 | AA43: =AA12 -> 2591 | AB43: =AB12 -> 2657 | AC43: 2591 | AD43: 2657 | AE43: 2591 | AF43: =AF15 -> 2600 | AG43: =AG15 -> 2600 | AH43: =AH15 -> 2655 | AI43: - | AJ43: 43 | AK43: 2600
A44: Wyb. Syst. | B44: 20 | C44: =VLOOKUP(B44,A1:B24,2,FALSE) -> FORM 10/4mm | I44: Wys. wyp. łączonych (płyta) | K44: 44 | L44: =IF(AND($D$6,$F$25=L42,$G$25=L42),(L12-$G$28)/($G$28+1),$D$11) -> - | M44: =IF(AND($D$6,$F$25=M42,$G$25=M42),(M12-$G$28)/($G$28+1),$D$11) -> - | N44: =IF(OR(AND($D$6,$F$25=N42,$G$25=N42),(AND(laczniki_tak,Wybrany_lacznik=1,System_z_grupy=N42))),(N43-$G$28)/($G$28+1),$D$11) -> - | O44: =IF(AND($D$6,$F$25=O42,$G$25=O42),IF($E$8=4,(O43-$G$28*19)/($G$28+1),(O43-$G$28*9)/($G$28+1)),$D$11) -> - | P44: =IF(AND($D$6,$F$25=P42,$G$25=P42),(P43-$G$28)/($G$28+1),$D$11) -> - | Q44: =N44 -> - | R44: - | S44: - | T44: =IF(AND($D$6,OR(AND($F$25=T42,$G$25=T42),AND(System_z_grupy=$D$28,Lacznik_z_grupy=$D$29))),IF($E$8=6,(T43-$G$28*7.5)/($G$28+1),(T43-$G$28)/(1+$G$28)),$D$11) -> - | U44: =IF(AND($D$6,OR(AND($F$25=U42,$G$25=U42),AND(System_z_grupy=$D$28,Lacznik_z_grupy=$D$29))),IF($E$8=6,(U43-$G$28*7.5)/($G$28+1),(U43-$G$28)/(1+$G$28)),$D$11) -> - | V44: =IF(AND($D$6,OR(AND($F$25=V42,$G$25=V42),AND(System_z_grupy=$D$28,Lacznik_z_grupy=$D$29))),IF($E$8=6,(V43-$G$28*7.5)/($G$28+1),(V43-$G$28)/(1+$G$28)),$D$11) -> - | W44: =IF(AND($D$6,$F$25=W42,$G$25=W42),(W43-$G$28)/($G$28+1),$D$11) -> - | X44: =O44 -> - | Y44: =IF(AND($D$6,$F$25=Y42,$G$25=Y42),(Y43-$G$28)/($G$28+1),$D$11) -> - | Z44: =N44 -> - | AA44: =O44 -> - | AB44: =IF(AND($D$6,$F$25=AB42,$G$25=AB42),(AB12-$G$28)/($G$28+1),$D$11) -> - | AC44: =IF(AND($D$6,$F$25=AC42,$G$25=AC42),IF($E$8=4,(AC43-$G$28*19)/($G$28+1),(AC43-$G$28*9)/($G$28+1)),$D$11) -> - | AD44: =IF(AND($D$6,$F$25=AD42,$G$25=AD42),(AD12-$G$28)/($G$28+1),$D$11) -> - | AE44: =IF(AND($D$6,$F$25=AE42,$G$25=AE42),IF($E$8=4,(AE43-$G$28*19)/($G$28+1),(AE43-$G$28*9)/($G$28+1)),$D$11) -> - | AF44: =V44 -> - | AG44: =V44 -> - | AH44: =IF(AND(laczniki_tak,H25=1,Wybrany_lacznik=G15),(AH43-l._lacznikow*1)/(l._lacznikow+1),D11) -> - | AI44: - | AJ44: 44 | AK44: -
I45: Wys. wyp. 4mm bez łączników | K45: 45 | L45: - | M45: - | N45: - | O45: =O16 -> 2599 | P45: - | Q45: 2655 | R45: - | S45: - | T45: 2599 | U45: 2599 | V45: 2599 | W45: - | X45: 2599 | Y45: - | Z45: - | AA45: =AA16 -> 2599 | AB45: =AB16 -> - | AC45: 2599 | AD45: - | AE45: 2599 | AF45: 2599 | AG45: 2599 | AH45: =AH16 -> 2654 | AI45: - | AJ45: 45 | AK45: 2599
I46: Wys. wyp. łączonych (szkło) | K46: 46 | L46: - | M46: - | N46: - | O46: =IF(AND($D$6,$F$25=O42,$G$25=O42),IF($E$8=4,(O45-$G$28*11)/($G$28+1),(O45-$G$28)/($G$28+1)),$D$11) -> - | P46: - | Q46: =IF(Q44=D11,D11,Q44-1) -> - | R46: - | S46: - | T46: =IF(AND($D$6,OR(AND($F$25=T42,$G$25=T42),AND(System_z_grupy=$D$28,Lacznik_z_grupy=$D$29))),IF($E$8=6,(T45-$G$28*10)/($G$28+1),(T45-$G$28*4)/(1+$G$28)),$D$11) -> - | U46: =IF(AND($D$6,OR(AND($F$25=U42,$G$25=U42),AND(System_z_grupy=$D$28,Lacznik_z_grupy=$D$29))),IF($E$8=6,(U45-$G$28*10)/($G$28+1),(U45-$G$28*4)/(1+$G$28)),$D$11) -> - | V46: =IF(AND($D$6,OR(AND($F$25=V42,$G$25=V42),AND(System_z_grupy=$D$28,Lacznik_z_grupy=$D$29))),IF($E$8=6,(V45-$G$28*10)/($G$28+1),(V45-$G$28*4)/(1+$G$28)),$D$11) -> - | W46: - | X46: =O46 -> - | Y46: - | Z46: - | AA46: =O46 -> - | AB46: - | AC46: =IF(AND($D$6,$F$25=AC42,$G$25=AC42),IF($E$8=4,(AC45-$G$28*11)/($G$28+1),(AC45-$G$28)/($G$28+1)),$D$11) -> - | AD46: - | AE46: =IF(AND($D$6,$F$25=AE42,$G$25=AE42),IF($E$8=4,(AE45-$G$28*11)/($G$28+1),(AE45-$G$28)/($G$28+1)),$D$11) -> - | AF46: =V46 -> - | AG46: =V46 -> - | AH46: =IF(AND(laczniki_tak,H25=1,Wybrany_lacznik=G15),(AH45-l._lacznikow*4)/(l._lacznikow+1),D11) -> - | AI46: - | AJ46: 46 | AK46: -

Sheet OVERLINE
D9: 1. | E9: =Opisy!A11 -> Wybierz system:
I11: =Opisy!A80 -> Wysokość: | J11: 2200 | K11: mm | L11: =Opisy!A83 -> Maksimum 3000mm
D12: 2. | E12: =Opisy!A77 -> Wymiary dla:
F13: =Opisy!A78 -> Wnęki | I13: =Opisy!A81 -> Szerokość: | J13: 1800 | K13: mm | L13: =Opisy!A84 -> Maksimum 4050mm
F14: =Opisy!A79 -> Korpusu szafy
I15: =Opisy!A82 -> Głębokość: | J15: 700 | K15: mm | L15: =Opisy!A137 -> Minimum 300mm
A17: 3. | B17: =Opisy!A85 -> Grubość płyty na korpus Gp: | E17: 18 | F17: =Opisy!A89 -> mm (minimum 16 mm)
B18: =Opisy!A86 -> Wysokość cokołu Hc : | E18: 100 | F18: =Opisy!A90 -> mm (minimum 50 mm)
B19: =Opisy!A87 -> Grubość płyty drzwi Gd: | E19: 18 | F19: =Opisy!A91 -> mm (16 - 22 mm)
B20: =Opisy!A88 -> Szerokość zakładki Z: | E20: 20 | F20: =Opisy!A92 -> mm (minimum 20 mm)
H21: =IF(M31>50,Opisy!A142," ") -> 
F22: =Opisy!A94 -> Wymiary szafy - drzwi nakładane
F23: =Opisy!A95 -> Korpus: | H23: =Opisy!A103 -> Wieniec górny i dolny: | J23: =Opisy!A105 -> Bok lewy: | L23: =Opisy!A107 -> Przegrody pionowe:
F24: =Opisy!A96 -> Wysokość Ws: | G24: =IF(OR(Wys.wprowadzana>3000,Szer.wprowadzana>4050,Gleb.wprowadzana<300,Wys.cokolu<50),"-",'Overline - Obliczenia'!P4) -> 2200 | H24: =I13 -> Szerokość: | I24: =IF(OR(Wys.wprowadzana>3000,Szer.wprowadzana>4050,Gleb.wprowadzana<300,Wys.cokolu<50),"-",'Overline - Obliczenia'!R4) -> 1764 | J24: =I11 -> Wysokość: | K24: =IF(OR(Wys.wprowadzana>3000,Szer.wprowadzana>4050,Gleb.wprowadzana<300,Wys.cokolu<50),"-",'Overline - Obliczenia'!T4) -> 2200 | L24: =J24 -> Wysokość: | M24: =IF(OR(Wys.wprowadzana>3000,Szer.wprowadzana>4050,Gleb.wprowadzana<300,Wys.cokolu<50),"-",'Overline - Obliczenia'!V4) -> 2019
F25: =Opisy!A97 -> Szerokość Ss: | G25: =IF(OR(Wys.wprowadzana>3000,Szer.wprowadzana>4050,Gleb.wprowadzana<300,Wys.cokolu<50),"-",'Overline - Obliczenia'!P5) -> 1800 | H25: =I15 -> Głębokość: | I25: =IF(OR(Wys.wprowadzana>3000,Szer.wprowadzana>4050,Gleb.wprowadzana<300,Wys.cokolu<50),"-",'Overline - Obliczenia'!R5) -> 638 | J25: =I15 -> Głębokość: | K25: =IF(OR(Wys.wprowadzana>3000,Szer.wprowadzana>4050,Gleb.wprowadzana<300,Wys.cokolu<50),"-",'Overline - Obliczenia'!T5) -> 673 | L25: =J25 -> Głębokość: | M25: =IF(OR(Wys.wprowadzana>3000,Szer.wprowadzana>4050,Gleb.wprowadzana<300,Wys.cokolu<50),"-",'Overline - Obliczenia'!V5) -> 628
F26: =Opisy!A98 -> Głębokość Gs: | G26: =IF(OR(Wys.wprowadzana>3000,Szer.wprowadzana>4050,Gleb.wprowadzana<300,Wys.cokolu<50),"-",'Overline - Obliczenia'!P6) -> 700 | H26: =Opisy!A114 -> Grubość: | I26: =IF(OR(Wys.wprowadzana>3000,Szer.wprowadzana>4050,Gleb.wprowadzana<300,Wys.cokolu<50),"-",'Overline - Obliczenia'!R6) -> 18 | J26: =H30 -> Grubość: | K26: =IF(OR(Wys.wprowadzana>3000,Szer.wprowadzana>4050,Gleb.wprowadzana<300,Wys.cokolu<50),"-",'Overline - Obliczenia'!T6) -> 18 | L26: =J26 -> Grubość: | M26: =IF(OR(Wys.wprowadzana>3000,Szer.wprowadzana>4050,Gleb.wprowadzana<300,Wys.cokolu<50),"-",'Overline - Obliczenia'!V6) -> 18
F27: =Opisy!A99 -> Wnętrze korpusu: | H27: =Opisy!A104 -> Wymiary cokołu: | J27: =Opisy!A106 -> Bok prawy: | L27: =Opisy!A108 -> Wymiary drzwi:
F28: =Opisy!A100 -> Wysokość Wu: | G28: =IF(OR(Wys.wprowadzana>3000,Szer.wprowadzana>4050,Gleb.wprowadzana<300,Wys.cokolu<50),"-",'Overline - Obliczenia'!P8) -> 2019 | H28: =I11 -> Wysokość: | I28: =IF(OR(Wys.wprowadzana>3000,Szer.wprowadzana>4050,Gleb.wprowadzana<300,Wys.cokolu<50),"-",'Overline - Obliczenia'!R8) -> 100 | J28: =J24 -> Wysokość: | K28: =IF(OR(Wys.wprowadzana>3000,Szer.wprowadzana>4050,Gleb.wprowadzana<300,Wys.cokolu<50),"-",'Overline - Obliczenia'!T8) -> 2200 | L28: =Opisy!A110 -> Wysokość Wd: | M28: =IF(OR(Wys.wprowadzana>3000,Szer.wprowadzana>4050,Gleb.wprowadzana<300,Wys.cokolu<50),"-",'Overline - Obliczenia'!V8) -> 2123
F29: =Opisy!A101 -> Szerokość Sw: | G29: =IF(OR(Wys.wprowadzana>3000,Szer.wprowadzana>4050,Gleb.wprowadzana<300,Wys.cokolu<50),"-",'Overline - Obliczenia'!P9) -> 1764 | H29: =I13 -> Szerokość: | I29: =IF(OR(Wys.wprowadzana>3000,Szer.wprowadzana>4050,Gleb.wprowadzana<300,Wys.cokolu<50),"-",'Overline - Obliczenia'!R9) -> 1764 | J29: =J25 -> Głębokość: | K29: =IF(OR(Wys.wprowadzana>3000,Szer.wprowadzana>4050,Gleb.wprowadzana<300,Wys.cokolu<50),"-",'Overline - Obliczenia'!T9) -> 644 | L29: =Opisy!A111 -> Szerokość Sd: | M29: =IF(OR(Wys.wprowadzana>3000,Szer.wprowadzana>4050,Gleb.wprowadzana<300,Wys.cokolu<50),"-",'Overline - Obliczenia'!V9) -> 910
F30: =Opisy!A102 -> Głębokość Gu: | G30: =IF(OR(Wys.wprowadzana>3000,Szer.wprowadzana>4050,Gleb.wprowadzana<300,Wys.cokolu<50),"-",'Overline - Obliczenia'!P10) -> 638 | H30: =Opisy!A114 -> Grubość: | I30: =IF(OR(Wys.wprowadzana>3000,Szer.wprowadzana>4050,Gleb.wprowadzana<300,Wys.cokolu<50),"-",'Overline - Obliczenia'!R10) -> 18 | J30: =J26 -> Grubość: | K30: =IF(OR(Wys.wprowadzana>3000,Szer.wprowadzana>4050,Gleb.wprowadzana<300,Wys.cokolu<50),"-",'Overline - Obliczenia'!T10) -> 18 | L30: =Opisy!A112 -> Grubość Gd: | M30: =IF(OR(Wys.wprowadzana>3000,Szer.wprowadzana>4050,Gleb.wprowadzana<300,Wys.cokolu<50),"-",'Overline - Obliczenia'!V10) -> 18
C31: =C45 -> * - Waga skrzydła została wyliczona dla wypełnienia wykonanego z płyty wiórowej (620kg/m3) lub szkła zwykłego o grubości 4mm (2800kg/m3), bez łączeń. | K31: =Opisy!A141 -> Waga skrzydła [kg] | M31: =(M28*M29*M30/1000000000)*620+0.5 -> 22.0603388
H35: =IF(M45>50,Opisy!A142," ") -> 
F36: =Opisy!A109 -> Wymiary szafy - drzwi wpuszczane
F37: =F23 -> Korpus: | H37: =H23 -> Wieniec górny i dolny: | J37: =J23 -> Bok lewy: | L37: =L23 -> Przegrody pionowe:
F38: =F24 -> Wysokość Ws: | G38: =IF(OR(Wys.wprowadzana>3000,Szer.wprowadzana>4050,Gleb.wprowadzana<300,Wys.cokolu<50),"-",'Overline - Obliczenia'!P15) -> 2200 | H38: =H24 -> Szerokość: | I38: =IF(OR(Wys.wprowadzana>3000,Szer.wprowadzana>4050,Gleb.wprowadzana<300,Wys.cokolu<50),"-",'Overline - Obliczenia'!R15) -> 1764 | J38: =J24 -> Wysokość: | K38: =IF(OR(Wys.wprowadzana>3000,Szer.wprowadzana>4050,Gleb.wprowadzana<300,Wys.cokolu<50),"-",'Overline - Obliczenia'!T15) -> 2200 | L38: =L24 -> Wysokość: | M38: =IF(OR(Wys.wprowadzana>3000,Szer.wprowadzana>4050,Gleb.wprowadzana<300,Wys.cokolu<50),"-",'Overline - Obliczenia'!V15) -> 2019
F39: =F25 -> Szerokość Ss: | G39: =IF(OR(Wys.wprowadzana>3000,Szer.wprowadzana>4050,Gleb.wprowadzana<300,Wys.cokolu<50),"-",'Overline - Obliczenia'!P16) -> 1800 | H39: =H25 -> Głębokość: | I39: =IF(OR(Wys.wprowadzana>3000,Szer.wprowadzana>4050,Gleb.wprowadzana<300,Wys.cokolu<50),"-",'Overline - Obliczenia'!R16) -> 638 | J39: =J25 -> Głębokość: | K39: =IF(OR(Wys.wprowadzana>3000,Szer.wprowadzana>4050,Gleb.wprowadzana<300,Wys.cokolu<50),"-",'Overline - Obliczenia'!T16) -> 700 | L39: =L25 -> Głębokość: | M39: =IF(OR(Wys.wprowadzana>3000,Szer.wprowadzana>4050,Gleb.wprowadzana<300,Wys.cokolu<50),"-",'Overline - Obliczenia'!V16) -> 628
F40: =F26 -> Głębokość Gs: | G40: =IF(OR(Wys.wprowadzana>3000,Szer.wprowadzana>4050,Gleb.wprowadzana<300,Wys.cokolu<50),"-",'Overline - Obliczenia'!P17) -> 700 | H40: =H26 -> Grubość: | I40: =IF(OR(Wys.wprowadzana>3000,Szer.wprowadzana>4050,Gleb.wprowadzana<300,Wys.cokolu<50),"-",'Overline - Obliczenia'!R17) -> 18 | J40: =J26 -> Grubość: | K40: =IF(OR(Wys.wprowadzana>3000,Szer.wprowadzana>4050,Gleb.wprowadzana<300,Wys.cokolu<50),"-",'Overline - Obliczenia'!T17) -> 18 | L40: =L26 -> Grubość: | M40: =IF(OR(Wys.wprowadzana>3000,Szer.wprowadzana>4050,Gleb.wprowadzana<300,Wys.cokolu<50),"-",'Overline - Obliczenia'!V17) -> 18
F41: =F27 -> Wnętrze korpusu: | H41: =H27 -> Wymiary cokołu: | J41: =J27 -> Bok prawy: | L41: =L27 -> Wymiary drzwi:
F42: =F28 -> Wysokość Wu: | G42: =IF(OR(Wys.wprowadzana>3000,Szer.wprowadzana>4050,Gleb.wprowadzana<300,Wys.cokolu<50),"-",'Overline - Obliczenia'!P19) -> 2019 | H42: =H28 -> Wysokość: | I42: =IF(OR(Wys.wprowadzana>3000,Szer.wprowadzana>4050,Gleb.wprowadzana<300,Wys.cokolu<50),"-",'Overline - Obliczenia'!R19) -> 100 | J42: =J28 -> Wysokość: | K42: =IF(OR(Wys.wprowadzana>3000,Szer.wprowadzana>4050,Gleb.wprowadzana<300,Wys.cokolu<50),"-",'Overline - Obliczenia'!T19) -> 2200 | L42: =L28 -> Wysokość Wd: | M42: =IF(OR(Wys.wprowadzana>3000,Szer.wprowadzana>4050,Gleb.wprowadzana<300,Wys.cokolu<50),"-",'Overline - Obliczenia'!V19) -> 2123
F43: =F29 -> Szerokość Sw: | G43: =IF(OR(Wys.wprowadzana>3000,Szer.wprowadzana>4050,Gleb.wprowadzana<300,Wys.cokolu<50),"-",'Overline - Obliczenia'!P20) -> 1764 | H43: =H29 -> Szerokość: | I43: =IF(OR(Wys.wprowadzana>3000,Szer.wprowadzana>4050,Gleb.wprowadzana<300,Wys.cokolu<50),"-",'Overline - Obliczenia'!R20) -> 1764 | J43: =J29 -> Głębokość: | K43: =IF(OR(Wys.wprowadzana>3000,Szer.wprowadzana>4050,Gleb.wprowadzana<300,Wys.cokolu<50),"-",'Overline - Obliczenia'!T20) -> 671 | L43: =L29 -> Szerokość Sd: | M43: =IF(OR(Wys.wprowadzana>3000,Szer.wprowadzana>4050,Gleb.wprowadzana<300,Wys.cokolu<50),"-",'Overline - Obliczenia'!V20) -> 892
F44: =F30 -> Głębokość Gu: | G44: =IF(OR(Wys.wprowadzana>3000,Szer.wprowadzana>4050,Gleb.wprowadzana<300,Wys.cokolu<50),"-",'Overline - Obliczenia'!P21) -> 638 | H44: =H30 -> Grubość: | I44: =IF(OR(Wys.wprowadzana>3000,Szer.wprowadzana>4050,Gleb.wprowadzana<300,Wys.cokolu<50),"-",'Overline - Obliczenia'!R21) -> 18 | J44: =J30 -> Grubość: | K44: =IF(OR(Wys.wprowadzana>3000,Szer.wprowadzana>4050,Gleb.wprowadzana<300,Wys.cokolu<50),"-",'Overline - Obliczenia'!T21) -> 18 | L44: =L30 -> Grubość Gd: | M44: =IF(OR(Wys.wprowadzana>3000,Szer.wprowadzana>4050,Gleb.wprowadzana<300,Wys.cokolu<50),"-",'Overline - Obliczenia'!V21) -> 18
C45: =Opisy!A28 -> * - Waga skrzydła została wyliczona dla wypełnienia wykonanego z płyty wiórowej (620kg/m3) lub szkła zwykłego o grubości 4mm (2800kg/m3), bez łączeń. | K45: =K31 -> Waga skrzydła [kg] | M45: =(M42*M43*M44/1000000000)*620+0.5 -> 21.63387056
B50: =Opisy!A113 -> Notatki:
M67: GTV Poland Sp. z o.o. Sp. k.
M68: ul. Przejazdowa 21, 05-800 Pruszków, Polska
M69: www.gtv.com.pl
M70: gtv.tech@gtv.com.pl

Sheet Overline - Obliczenia (hidden)
B2: Wybrany system: | C2: 1 | D2: =VLOOKUP(C2,A8:B38,2,FALSE) -> OVERILINE | F2: Grubość płyty na korpus Gp | I2: =VLOOKUP(H16,F17:G19,2,FALSE) -> 18 | O2: Wymiary szafy - drzwi nakładane
B3: Typ zabudowy: | C3: 2 | F3: Wysokość cokołu Hc | I3: =OVERLINE!E18 -> 100 | O3: Korpus: | Q3: Wieniec górny i dolny | S3: Bok lewy | U3: Przegrody pionowe
B4: Układ drzwi | F4: Grubość płyty drzwi Gd | I4: =VLOOKUP(I16,F17:G19,2,FALSE) -> 18 | O4: Wysokość Ws | P4: =Wys.szafy -> 2200 | Q4: Szerokość | R4: =P9 -> 1764 | S4: Wysokość | T4: =Wys.szafy -> 2200 | U4: Wysokość | V4: =Wys.uzyt.szafy -> 2019
F5: Szerokość zakładki Z | I5: =OVERLINE!E20 -> 20 | O5: Szerokość Ss | P5: =Szer.szafy -> 1800 | Q5: Głębokość | R5: =P10 -> 638 | S5: Głębokość | T5: =Gleb.uzyt.szafy+35 -> 673 | U5: Głębokość | V5: =Gleb.uzyt.szafy-10 -> 628
B6: Systemy podwieszane | O6: Głębokość Gs | P6: =Gleb.szafy -> 700 | Q6: Grubość | R6: =Grub.plyty.korp -> 18 | S6: Grubość | T6: =Grub.plyty.korp -> 18 | U6: Grubość | V6: =Grub.plyty.korp -> 18
F7: Wysokość szafy | H7: =IF(AND(OR(Wybrany_System_podw=1,Wybrany_System_podw=2),Typ_zabudowy=1),Wys.wprowadzana-25,Wys.wprowadzana) -> 2200 | O7: Wnętrze korpusu: | Q7: Wymiary cokołu | S7: Bok prawy | U7: Wymiary drzwi
F8: Szerokość szafy | H8: =IF(AND(OR(Wybrany_System_podw=1,Wybrany_System_podw=2),Typ_zabudowy=1),Szer.wprowadzana-7,Szer.wprowadzana) -> 1800 | O8: Wysokość Wu | P8: =Wys.uzyt.szafy -> 2019 | Q8: Wysokość | R8: =Wys.cokolu -> 100 | S8: Wysokość | T8: =Wys.szafy -> 2200 | U8: Wysokość Wd | V8: =IF(Wybrany_System_podw=1,Wys.szafy-Wys.cokolu-Grub.plyty.korp+41,IF(Wybrany_System_podw=2,Wys.szafy-Wys.cokolu-Grub.plyty.korp+39,"-")) -> 2123
A9: 1 | B9: OVERILINE | F9: Głębokość szafy | H9: =Gleb.wprowadzana -> 700 | O9: Szerokość Sw | P9: =Szer.uzyt.szafy -> 1764 | Q9: Długość | R9: =P9 -> 1764 | S9: Głębokość | T9: =Gleb.uzyt.szafy+6 -> 644 | U9: Szerokość Sd | V9: =(Szer.szafy+Szer.zakladki)/2 -> 910
A10: 2 | B10: OVERLINE PLUS | O10: Głębokość Gu | P10: =Gleb.uzyt.szafy -> 638 | Q10: Grubość | R10: =Grub.plyty.korp -> 18 | S10: Grubość | T10: =Grub.plyty.korp -> 18 | U10: Grubość Gd | V10: =Grub.drzwi -> 18
F11: Wysokość użyteczna szafy | I11: =Wys.szafy-Wys.cokolu-2*Grub.plyty.korp-45 -> 2019
F12: Szerokość użyteczna szafy | I12: =Szer.szafy-2*Grub.plyty.korp -> 1764
F13: Głębokość użyteczna szafy | I13: =Gleb.szafy-Grub.drzwi-44 -> 638 | O13: Wymiary szafy - drzwi wpuszczane
O14: Korpus: | Q14: Wieniec górny i dolny | S14: Bok lewy | U14: Przegrody pionowe
F15: Grubości płyt | H15: korpus | I15: drzwi | O15: Wysokość Ws | P15: =Wys.szafy -> 2200 | Q15: Szerokość | R15: =P20 -> 1764 | S15: Wysokość | T15: =Wys.szafy -> 2200 | U15: Wysokość | V15: =Wys.uzyt.szafy -> 2019
H16: 2 | I16: 2 | O16: Szerokość Ss | P16: =Szer.szafy -> 1800 | Q16: Głębokość | R16: =P21 -> 638 | S16: Głębokość | T16: =Gleb.uzyt.szafy+Grub.drzwi+44 -> 700 | U16: Głębokość | V16: =Gleb.uzyt.szafy-10 -> 628
F17: 1 | G17: 16 | O17: Głębokość Gs | P17: =Gleb.szafy -> 700 | Q17: Grubość | R17: =Grub.plyty.korp -> 18 | S17: Grubość | T17: =Grub.plyty.korp -> 18 | U17: Grubość | V17: =Grub.plyty.korp -> 18
F18: 2 | G18: 18 | O18: Wnętrze korpusu: | Q18: Wymiary cokołu | S18: Bok prawy | U18: Wymiary drzwi
F19: 3 | G19: 22 | O19: Wysokość Wu | P19: =Wys.uzyt.szafy -> 2019 | Q19: Wysokość | R19: =Wys.cokolu -> 100 | S19: Wysokość | T19: =Wys.szafy -> 2200 | U19: Wysokość Wd | V19: =V8 -> 2123
O20: Szerokość Sw | P20: =Szer.uzyt.szafy -> 1764 | Q20: Długość | R20: =Szer.uzyt.szafy -> 1764 | S20: Głębokość | T20: =Gleb.uzyt.szafy+Grub.drzwi+15 -> 671 | U20: Szerokość Sd | V20: =(Szer.szafy-2*Grub.plyty.korp+Szer.zakladki)/2 -> 892
O21: Głębokość Gu | P21: =Gleb.uzyt.szafy -> 638 | Q21: Grubość | R21: =Grub.plyty.korp -> 18 | S21: Grubość | T21: =Grub.plyty.korp -> 18 | U21: Grubość Gd | V21: =Grub.drzwi -> 18

Sheet QUANTUM
A12: 1. | B12: =Opisy!A11 -> Wybierz system:
A14: 2. | B14: =Opisy!A115 -> Opcje montażu: | H14: 3. | I14: =Opisy!A124 -> Wybór zabudowy:
I17: =Opisy!A125 -> Wariant A
I24: =Opisy!A126 -> Wariant B
A31: 4. | B31: =Opisy!A120 -> Wymiary otworu: | E31: =Opisy!A121 -> Wysokość WO: | F31: 2700 | G31: =E40 -> mm | H31: =IF(AND(Wybr.system.przejsciowy>3,QUANTUM!D46>2700),Opisy!A138," ") -> 
E32: =Opisy!A122 -> Szerokość SO: | F32: 800 | G32: =E39 -> mm | H32: =IF(AND(Wybr.system.przejsciowy>3,'Quantum - obliczenia'!$G$26,$D$60>6000,'Quantum - obliczenia'!$G$27<3),Opisy!A140,IF(AND('Quantum - obliczenia'!$G$26,$D$60>3000,'Quantum - obliczenia'!$G$27=3),Opisy!A139,IF(AND(Wybr.system.przejsciowy>3,D60>6000),Opisy!A140," "))) -> 
E33: =Opisy!A133 -> Szerokość zakładki X: | F33: 46 | G33: =G31 -> mm | H33: =Opisy!A123 -> <----- Dla ukrytego prowadnika Xmin = 46mm
H35: =IF(AND(Wybr.system.przejsciowy=2,MAX(H39:L39)>50),Opisy!A142,IF(AND(Wybr.system.przejsciowy>3,MAX(QUANTUM!M39:N39)>50),Opisy!A142," ")) -> 
B36: =Opisy!A128 -> Wyliczenia dla rozwiązania bezramowego (Quantum) | H36: =Opisy!A141 -> Waga skrzydła [kg]
H37: QUANTUM | M37: QUANTUM R
B38: =Opisy!A134 -> Wymiary skrzydła drzwi: | H38: 16 | I38: 18 | J38: 22 | K38: 25 | L38: 28 | M38: 4 | N38: 10
B39: =Opisy!A52 -> Wysokość drzwi | C39: WD | D39: =IF('Quantum - obliczenia'!$D$1='Quantum - obliczenia'!$B$4,HLOOKUP(Opcja.montazu,'Quantum - obliczenia'!G2:I6,3,FALSE),"-") -> - | E39: =E40 -> mm | H39: =IF($D$39="-","-",$D$39*$D$40*H38*620/1000000000+0.34) -> - | I39: =IF($D$39="-","-",$D$39*$D$40*I38*620/1000000000+0.34) -> - | J39: - | K39: - | L39: - | M39: =IF(Wybr.system.przejsciowy>3,VLOOKUP('Quantum - obliczenia'!$H$43,'Quantum - obliczenia'!$E$42:$G$49,3,0),"-") -> 26.564808 | N39: =IF(Wybr.system.przejsciowy>3,VLOOKUP('Quantum - obliczenia'!$H$42,'Quantum - obliczenia'!$E$42:$G$49,3,0),"-") -> 16.4172166
B40: =Opisy!A51 -> Szerokość drzwi | C40: SD | D40: =IF('Quantum - obliczenia'!D1='Quantum - obliczenia'!B4,HLOOKUP(Opcja.montazu,'Quantum - obliczenia'!G2:I5,2,FALSE),"-") -> - | E40: =Opisy!A46 -> mm | H40: =Opisy!A28 -> * - Waga skrzydła została wyliczona dla wypełnienia wykonanego z płyty wiórowej (620kg/m3) lub szkła zwykłego o grubości 4mm (2800kg/m3), bez łączeń.
B41: =Opisy!A127 -> Długość toru | C41: DT | D41: =IF('Quantum - obliczenia'!D1='Quantum - obliczenia'!B4,HLOOKUP(Opcja.montazu,'Quantum - obliczenia'!G2:I6,4,FALSE),"-") -> - | E41: =E40 -> mm | F41: =IF(AND(Wybr.system.przejsciowy=2,D41>3000),Opisy!A143," ") -> 
B43: =Opisy!A129 -> Wyliczenia dla rozwiązania ramowego (Quantum R)
B45: =Opisy!A134 -> Wymiary skrzydła drzwi: | H45: =Opisy!A31 -> Łączniki
B46: =B39 -> Wysokość drzwi | C46: WD | D46: =IF(Wybr.system.przejsciowy>3,HLOOKUP(Opcja.montazu,'Quantum - obliczenia'!$G$2:$I$5,'Quantum - obliczenia'!L4,FALSE),"-") -> 2644 | E46: =E47 -> mm
B47: =B40 -> Szerokość drzwi | C47: SD | D47: =IF(Wybr.system.przejsciowy>3,HLOOKUP(Opcja.montazu,'Quantum - obliczenia'!$G$2:$I$5,'Quantum - obliczenia'!L3,FALSE),"-") -> 846 | E47: =Opisy!G46 -> mm
B48: =B41 -> Długość toru | C48: DT | D48: =IF(Wybr.system.przejsciowy>3,HLOOKUP(Opcja.montazu,'Quantum - obliczenia'!$G$2:$I$5,'Quantum - obliczenia'!L5,FALSE),"-") -> 1646 | E48: =E47 -> mm | F48: =IF(AND(Wybr.system.przejsciowy>3,D48>3000),Opisy!A143," ") -> 
B50: =Opisy!A130 -> Wymiary wypełnienia z płyty 10mm | G50: =IF(AND(Wybr.system.przejsciowy>3,Oblicz.locznikow),"↓10/4mm↓"," ") -> ↓10/4mm↓
B51: =Opisy!A56 -> Szer. wyp. 10mm | C51: SW10 | D51: =IF(Wybr.system.przejsciowy>3,HLOOKUP(Opcja.montazu,'Quantum - obliczenia'!$F$2:$K$17,'Quantum - obliczenia'!L8,FALSE),"-") -> 803 | E51: =$E$39 -> mm
B52: =Opisy!A61 -> Wys. wyp. 10mm | C52: WW10 | D52: =IF(Wybr.system.przejsciowy>3,HLOOKUP(Opcja.montazu,'Quantum - obliczenia'!$F$2:$K$17,'Quantum - obliczenia'!L9,FALSE),"-") -> 2551 | E52: =$E$39 -> mm
B54: =Opisy!A131 -> Wymiary wypełnienia ze szkła 4mm
B55: =Opisy!A57 -> Szer. wyp. 4mm | C55: SW4 | D55: =IF(Wybr.system.przejsciowy>3,HLOOKUP(Opcja.montazu,'Quantum - obliczenia'!$F$2:$K$17,'Quantum - obliczenia'!L12,FALSE),"-") -> 800 | E55: =$E$39 -> mm
B56: =Opisy!A62 -> Wys. wyp. 4mm | C56: WW4 | D56: =IF(Wybr.system.przejsciowy>3,HLOOKUP(Opcja.montazu,'Quantum - obliczenia'!$F$2:$K$17,'Quantum - obliczenia'!L13,FALSE),"-") -> 2550 | E56: =$E$39 -> mm
B58: =Opisy!A132 -> Wymiary profili aluminiowych | G58: =Opisy!A36 -> i (ilość łączników) | I58: 2
B59: =Opisy!A63 -> Długość rączki | C59: DR | D59: =IF(Wybr.system.przejsciowy>3,HLOOKUP(Opcja.montazu,'Quantum - obliczenia'!$F$2:$K$17,'Quantum - obliczenia'!L16,FALSE),"-") -> 2644 | E59: =$E$39 -> mm | G59: =Opisy!A135 -> Wys. el. z płyty | I59: =HLOOKUP(Opcja.montazu,'Quantum - obliczenia'!$F$2:$I$23,'Quantum - obliczenia'!L22,FALSE) -> 845.3333333
B60: =Opisy!A64 -> Dł. listew poz. | C60: DLP | D60: =IF(Wybr.system.przejsciowy>3,HLOOKUP(Opcja.montazu,'Quantum - obliczenia'!$F$2:$K$17,'Quantum - obliczenia'!L17,FALSE),"-") -> 786 | E60: =$E$39 -> mm | G60: =Opisy!A136 -> Wys. el. ze szkła | I60: =HLOOKUP(Opcja.montazu,'Quantum - obliczenia'!$F$2:$I$23,'Quantum - obliczenia'!L23,FALSE) -> 843
M67: GTV Poland Sp. z o.o. Sp. k.
M68: ul. Przejazdowa 21, 05-800 Pruszków, Polska
M69: www.gtv.com.pl
M70: gtv.tech@gtv.com.pl

Sheet Quantum - obliczenia (hidden)
B1: Wybrany system | C1: 4 | D1: =VLOOKUP(C1,A3:B7,2,FALSE) -> QUANTUM R + ARCO | G1: Opcje montażu | J1: Wariant zabudowy
G2: 1 | H2: 2 | I2: 3 | J2: 4 | K2: 5 | L2: 1
A3: 1 | B3: --Przejściowe bezramowe-- | C3: WO | D3: =QUANTUM!F31 -> 2700 | F3: SD | G3: =HLOOKUP($C$26,J2:K3,2,FALSE) -> 846 | H3: =HLOOKUP($C$26,J2:K3,2,FALSE) -> 846 | I3: =HLOOKUP($C$26,J2:K3,2,FALSE) -> 846 | J3: =Szer.Otw.przej+Szer.zakl.przej -> 846 | K3: =Szer.Otw.przej+Szer.zakl.przej*2 -> 892 | L3: 2
A4: 2 | B4: QUANTUM | C4: SO | D4: =QUANTUM!F32 -> 800 | F4: WD | G4: =Wys.otw.przej-56 -> 2644 | H4: =Wys.otw.przej-58 -> 2642 | I4: =Wys.otw.przej+20 -> 2720 | J4: - | K4: - | L4: 3
A5: 3 | B5: ----Przejściowe ramowe---- | C5: X | D5: =QUANTUM!F33 -> 46 | F5: DT | G5: =HLOOKUP($C$26,$J$2:$K$5,4,FALSE) -> 1646 | H5: =HLOOKUP($C$26,$J$2:$K$5,4,FALSE) -> 1646 | I5: =HLOOKUP($C$26,$J$2:$K$5,4,FALSE) -> 1646 | J5: =Szer.Otw.przej+J3 -> 1646 | K5: =Szer.Otw.przej+K3 -> 1692 | L5: 4
A6: 4 | B6: QUANTUM R + ARCO | L6: 5
A7: 5 | B7: QUANTUM R + FALDA | F7: =Opisy!C130 -> Wymiary wypełnienia z płyty 10mm | L7: 6
F8: SW10 | G8: =G3-43 -> 803 | H8: =H3-43 -> 803 | I8: 803 | L8: 7
B9: Opcje montażu | C9: 1 | F9: WW10 | G9: =G4-93 -> 2551 | H9: =H4-93 -> 2549 | I9: 2627 | L9: 8
B10: =Opisy!A116 -> Bezpośredni montaż do sufitu | L10: 9
B11: =Opisy!A117 -> Montaż do sufitu - uchwyt górny | F11: =Opisy!C131 -> Wymiary wypełnienia ze szkła 4mm | L11: 10
B12: =Opisy!A118 -> Montaż do ściany - uchwyt boczny | F12: SW4 | G12: =G3-46 -> 800 | H12: =H3-46 -> 800 | I12: 800 | L12: 11
F13: WW4 | G13: =G4-94 -> 2550 | H13: =H4-94 -> 2548 | I13: 2626 | L13: 12
B14: Grubość wypełnienia | C14: 5 | L14: 13
A15: 1 | B15: =B5 -> ----Przejściowe ramowe---- | F15: =Opisy!C132 -> Wymiary profili aluminiowych | L15: 14
A16: 2 | B16: 10/4 | F16: DR | G16: =G4 -> 2644 | H16: =H4 -> 2642 | I16: 2720 | L16: 15
A17: 3 | B17: =B3 -> --Przejściowe bezramowe-- | F17: DLP | G17: =G3-60 -> 786 | H17: =H3-60 -> 786 | I17: 786 | L17: 16
A18: 4 | B18: 16 | L18: 17
A19: 5 | B19: 18 | L19: 18
A20: 6 | B20: 22 | L20: 19
A21: 7 | B21: 25 | F21: Obliczenia z łącznikami | L21: 20
A22: 8 | B22: 28 | F22: płyta | G22: =VLOOKUP(Wybrany.lacznik.przej,E30:I32,3,FALSE) -> 845.3333333 | H22: =VLOOKUP(Wybrany.lacznik.przej,E30:I32,4,FALSE) -> 844.6666667 | I22: =VLOOKUP(Wybrany.lacznik.przej,E30:I32,5,FALSE) -> 870.6666667 | L22: 21
F23: szkło | G23: =VLOOKUP(Wybrany.lacznik.przej,E33:I35,3,FALSE) -> 843 | H23: =VLOOKUP(Wybrany.lacznik.przej,E33:I35,4,FALSE) -> 842.3333333 | I23: =VLOOKUP(Wybrany.lacznik.przej,E33:I35,5,FALSE) -> 868.3333333 | L23: 22
L24: 23
B25: Wariant zabudowy | C25: 1 | L25: 24
A26: 1 | B26: =Opisy!A125 -> Wariant A | C26: =IF(C25=1,4,5) -> 4 | F26: Łączniki (TAK/NIE) | G26: TRUE | L26: 25
A27: 2 | B27: =Opisy!A126 -> Wariant B | F27: Wybrany lacznik | G27: 1 | L27: 26
F28: Warunek oblicznia łączników | G28: =IF(AND(Wybr.system.przejsciowy>3,Oblicz.locznikow),TRUE,FALSE) -> TRUE | L28: 27
F29: Liczba łączników | G29: =QUANTUM!I58 -> 2 | L29: 28
E30: 1 | F30: A-HRS10-XXX-YY | G30: =IF(AND(Policz.laczniki,Wybrany.lacznik.przej=$E$30),(G$9-Liczba.lacznikow*7.5)/(Liczba.lacznikow+1),"-") -> 845.3333333 | H30: =IF(AND(Policz.laczniki,Wybrany.lacznik.przej=$E$30),(H$9-Liczba.lacznikow*7.5)/(Liczba.lacznikow+1),"-") -> 844.6666667 | I30: =IF(AND(Policz.laczniki,Wybrany.lacznik.przej=$E$30),(I$9-Liczba.lacznikow*7.5)/(Liczba.lacznikow+1),"-") -> 870.6666667 | J30: 0.268 | L30: 29
E31: 2 | F31: A-HR10-XXX-YY | G31: =IF(AND(Policz.laczniki,Wybrany.lacznik.przej=$E$31),(G$9-Liczba.lacznikow*1)/(Liczba.lacznikow+1),"-") -> - | H31: =IF(AND(Policz.laczniki,Wybrany.lacznik.przej=$E$31),(H$9-Liczba.lacznikow*1)/(Liczba.lacznikow+1),"-") -> - | I31: =IF(AND(Policz.laczniki,Wybrany.lacznik.przej=$E$31),(I$9-Liczba.lacznikow*1)/(Liczba.lacznikow+1),"-") -> - | J31: 0.185 | L31: 30
E32: 3 | F32: A-HR10FL-XXX-YY | G32: =IF(AND(Policz.laczniki,Wybrany.lacznik.przej=$E$32),(G$9-Liczba.lacznikow*1)/(Liczba.lacznikow+1),"-") -> - | H32: =IF(AND(Policz.laczniki,Wybrany.lacznik.przej=$E$32),(H$9-Liczba.lacznikow*1)/(Liczba.lacznikow+1),"-") -> - | I32: =IF(AND(Policz.laczniki,Wybrany.lacznik.przej=$E$32),(I$9-Liczba.lacznikow*1)/(Liczba.lacznikow+1),"-") -> - | J32: 0.134 | L32: 31
E33: 1 | F33: A-HRS10-XXX-YY | G33: =IF(AND(Policz.laczniki,Wybrany.lacznik.przej=$E$30),(G13-Liczba.lacznikow*10.5)/(Liczba.lacznikow+1),"-") -> 843 | H33: =IF(AND(Policz.laczniki,Wybrany.lacznik.przej=$E$30),(H13-Liczba.lacznikow*10.5)/(Liczba.lacznikow+1),"-") -> 842.3333333 | I33: =IF(AND(Policz.laczniki,Wybrany.lacznik.przej=$E$30),(I13-Liczba.lacznikow*10.5)/(Liczba.lacznikow+1),"-") -> 868.3333333
E34: 2 | F34: A-HR10-XXX-YY | G34: =IF(AND(Policz.laczniki,Wybrany.lacznik.przej=$E$31),(G13-Liczba.lacznikow*4)/(Liczba.lacznikow+1),"-") -> - | H34: =IF(AND(Policz.laczniki,Wybrany.lacznik.przej=$E$31),(H13-Liczba.lacznikow*4)/(Liczba.lacznikow+1),"-") -> - | I34: =IF(AND(Policz.laczniki,Wybrany.lacznik.przej=$E$31),(I13-Liczba.lacznikow*4)/(Liczba.lacznikow+1),"-") -> -
E35: 3 | F35: A-HR10FL-XXX-YY | G35: =IF(AND(Policz.laczniki,Wybrany.lacznik.przej=$E$32),(G13-Liczba.lacznikow*4)/(Liczba.lacznikow+1),"-") -> - | H35: =IF(AND(Policz.laczniki,Wybrany.lacznik.przej=$E$32),(H13-Liczba.lacznikow*4)/(Liczba.lacznikow+1),"-") -> - | I35: =IF(AND(Policz.laczniki,Wybrany.lacznik.przej=$E$32),(I13-Liczba.lacznikow*4)/(Liczba.lacznikow+1),"-") -> -
B41: Obliczenia wagi QUANTUM R | C41: ARCO | D41: FALDA | E41: Warunek wypełnienia tabeli z wagami do quantum r
C42: ='Obliczenia-dolny'!U4 -> 0.418 | D42: ='Obliczenia-dolny'!V4 -> 0.463 | E42: 40 | F42: ARCO PLYTA | G42: =Arco.plyta -> 15.9959206 | H42: =Wybr.system.przejsciowy*10+Oblicz.locznikow -> 41
B43: Płyta | C43: =QUANTUM!D51*QUANTUM!D52*QUANTUM!N38*620/1000000000 -> 12.7004086 | D43: =C43 -> 12.7004086 | E43: 80 | F43: ARCO SZKLO | G43: =Arco.szklo -> 26.143512 | H43: =Wybr.system.przejsciowy*20+Oblicz.locznikow -> 81
B44: Szkło | C44: =QUANTUM!D55*QUANTUM!D56*QUANTUM!M38*2800/1000000000 -> 22.848 | D44: =C44 -> 22.848 | E44: 41 | F44: ARCO PLYTA LACZ | G44: =Arco.plyta.lacz -> 16.4172166
B45: Aluminium | C45: =2*C42*QUANTUM!$D$59/1000+2*'Obliczenia-dolny'!$J$34*QUANTUM!$D$60/1000 -> 2.955512 | D45: =2*D42*QUANTUM!$D$59/1000+2*'Obliczenia-dolny'!$J$34*QUANTUM!$D$60/1000 -> 3.193472 | E45: 81 | F45: ARCO SZKLO LACZ | G45: =Arco.szklo.lacz -> 26.564808
B46: Okucia | C46: 0.34 | D46: =0.34 -> 0.34 | E46: 50 | F46: FALDA PLYTA | G46: =Falda.plyta -> 16.2338806
B47: Razem płyta | C47: =SUM(C43,$C$45,$C$46) -> 15.9959206 | D47: =SUM(D43,$D$45,$D$46) -> 16.2338806 | E47: 100 | F47: FALDA SZKLO | G47: =Falda.szklo -> 26.381472
B48: Razem szkło | C48: =SUM(C44,$C$45,$C$46) -> 26.143512 | D48: =SUM(D44,$D$45,$D$46) -> 26.381472 | E48: 51 | F48: FALDA PLYTA LACZ | G48: =Falda.plyta.lacz -> 16.6551766
B49: Łączniki | C49: =VLOOKUP(Wybrany.lacznik.przej,$E$30:$J$32,6,0)*Liczba.lacznikow*G17/1000 -> 0.421296 | D49: =C49 -> 0.421296 | E49: 101 | F49: FALDA SZKLO LACZ | G49: =Falda.szklo.lacz -> 26.802768
B50: Razem płyta | C50: =C47+$C$49 -> 16.4172166 | D50: =D47+$D$49 -> 16.6551766
B51: Razem szkło | C51: =C48+$C$49 -> 26.564808 | D51: =D48+$D$49 -> 26.802768

Sheet Opisy (hidden)
A1: Wybór języka | B1: 1 | E1: =Opisy!A48 -> Błąd!
B2: Polski | E2: =Opisy!A49 -> Niewłaściwy łącznik!
B3: English
B4: Русский
B5: Deutsch
B6: Français
B7: =Tabela1[[#Headers],[Українська]] -> Українська
B8: Lietuvos
C9: 1 | D9: 2 | E9: 3 | F9: 4 | G9: 5 | H9: 6 | I9: 7
A10: Tekst do wstawienia | B10: Nr wiersza | C10: PL | D10: EN | E10: RU | F10: DE | G10: FR | H10: Українська | I10: LT
A11: =HLOOKUP($B$1,$C$9:$I$474,$B11,FALSE) -> Wybierz system: | B11: 3 | C11: Wybierz system: | D11: Choose a system: | E11: Выберите тип системы: | F11: System auswählen: | G11: Choix système: | H11: Виберіть систему: | I11: Pasirinkite sistema:
A12: Linia ERGO | B12: 4 | C12: Linia ERGO | D12: ERGO product line | E12: Система ERGO | F12: Linie ERGO | G12: Ligne ERGO | H12: Лінія ERGO | I12: ERGO produktų linija
A13: Linia NOVO | B13: 5 | C13: Linia NOVO | D13: NOVO product line | E13: Система NOVO | F13: Linie NOVO | G13: Ligne NOVO | H13: Лінія NOVO | I13: NOVO produktų linija
A14: Wymiary otworu | B14: 6 | C14: Wymiary otworu | D14: Cavity inner dimensions | E14: Размеры проема | F14: Größe der Öffnung | G14: Dimensions façade | H14: Розмір отвору | I14: Skylės matmenis
A15: <- MAX 2,74m | B15: 7 | C15: <- MAX 2,74m | D15: <- MAX 2,74m | E15: <- MAX 2,74 м | F15: <- MAX 2,74 m | G15: <- MAX 2,74m | H15: <- MAX 2,74м | I15: <- MAX 2,74m
A16: <- MIN 1,0m | B16: 8 | C16: <- MIN 1,0m | D16: <- MIN 1,0m | E16: <- MIN 1,0 м | F16: <- MIN 1,0 m | G16: <- MIN 1,0m | H16: <- MIN 1,0м | I16: <- MIN 1,0m
A17: <- OK | B17: 9 | C17: <- OK | D17: <- OK | E17: <- OK | F17: <- OK | G17: <- OK | H17: <- OK | I17: <- OK
A18: WO [mm] | B18: 10 | C18: WO [mm] | D18: Cabinet height [mm] | E18: Высота [мм] | F18: H [mm] | G18: WO [mm] | H18: ВО [мм] | I18: Skylės aukštis [mm]
A19: SO [mm] | B19: 11 | C19: SO [mm] | D19: Cabinet width [mm] | E19: Ширина [мм] | F19: B [mm] | G19: SO [mm] | H19: ШО [мм] | I19: Skylės plotis [mm]
A20: <- MAX 6,0m | B20: 12 | C20: <- MAX 6,0m | D20: <- MAX 6,0m | E20: <- MAX 6,0 м | F20: <- MAX 6,0 m | G20: <- MAX 6,0m | H20: <- MAX 6,0м | I20: <- MAX 6,0m
A21: Konfiguracja skrzydeł | B21: 13 | C21: Konfiguracja skrzydeł | D21: Door configuration | E21: Конфигурация дверей | F21: Konfiguration der Flügel | G21: Configuration vantaux | H21: Конфігурація дверей | I21: Durų konfigūracija
A22: n (l. skrzydeł) | B22: 14 | C22: n (l. skrzydeł) | D22: n (no. of doors) | E22: кол-во дверей | F22: n (Anzahl von Flügeln) | G22: n (nombre de vantaux) | H22: n (к-сть. дверей) | I22: n (durų skaičius )
A23: k (l. zakładek) | B23: 15 | C23: k (l. zakładek) | D23: k (no. of overlaps) | E23: кол-во перехлестов | F23: k (Anzahl von Überlappungen) | G23: k (nombre de recouvrements) | H23: k (к-сть. накладка) | I23: k (persidengimų skaičius)
A24: z (szer. zakładki) | B24: 16 | C24: z (szer. zakładki) | D24: z (width of overlap) | E24: ширина перехлеста | F24: z (Breite der Überlappung) | G24: z (largeur des recouvrements) | H24: z (ширина накладки) | I24: z (persidengimo plotis)
A25: Szczotka | B25: 17 | C25: Szczotka | D25: Pile brush seal | E25: Щетка | F25: Bürste | G25: Brosse | H25: Щітка | I25: šepetėlis
A26: Uwaga: | B26: 18 | C26: Uwaga: | D26: Attention: | E26: Внимание! | F26: Achtung: | G26: Remarque: | H26: Увага: | I26: Dėmesio :
A27: Proporcje skrzydeł dla montażu mechanizmu samodociągu: | B27: 19 | C27: Proporcje skrzydeł dla montażu mechanizmu samodociągu: | D27: Proportions of the doors, for mounting the soft closing mechanism: | E27: Пропорции дверей для монтажа механизма самодоката | F27: Proportionen der Flügel für Montage des Selbsteinzugs: | G27: Proportion vantail pour montage mécanisme soft-closing | H27: Пропозиція крил для монтажу механізму самодотягу | I27: Durų proporcijos mechanizmo montavimui :
A28: * - Waga skrzydła została wyliczona dla wypełnienia wykonanego z płyty wiórowej (620kg/m3) lub szkła zwykłego o grubości 4mm (2800kg/m3), bez łączeń. | B28: 20 | C28: * - Waga skrzydła została wyliczona dla wypełnienia wykonanego z płyty wiórowej (620kg/m3) lub szkła zwykłego o grubości 4mm (2800kg/m3), bez łączeń. | D28: * - Weight was calculated for door made ​​of chipboard (620kg / m 3) or ordinary glass with a thickness of 4mm (2800kg / m 3), without joints. | E28: * - Вес двери просчитан для наполнения из плиты ДСП (620 кг/м3) или стекла (2800 кг/м3) без соеденительных профилей. | F28: * - Gewicht des Flügels wurde für Türen aus Pressspan (620 kg/m3) oder Glas mit einer Stärke von 4 mm (2800 kg/m3) ohne Verbindungen errechnet. | G28: * - Poids du vantail calculé pour remplissage avec panneaux agglomérés (620kg/m3) ou verre d'épaisseur 4mm (2800kg/m3), sans joints. | H28: * - Вага крила була розрахована для наповнення виконаного з ДСП (620кг/м3) або звичайного скла товщиною 4мм (2800кг/м3), без з'єднань. | I28: * -* - Svoris buvo apskaičiuotas durims pagamintoms iš medžio drožlių plokštės (620kg / m 3) arba paprasto stiklo 4mm storio (2800kg / m 3), be siūlių.
A29: Uwaga! Nie właściwa proporcja wysokości drzwi do szerokości. Zaleca się zmniejszyć liczbę skrzydeł. | B29: 21 | C29: Uwaga! Nie właściwa proporcja wysokości drzwi do szerokości. Zaleca się zmniejszyć liczbę skrzydeł. | D29: Attention! Wrong proportions between the door height and width. It is recommended to reduce the number of doors. | E29: Внимание! Неправильная пропорция высоты двери к ширине. Рекомендуется уменьшить количество дверей. | F29: Achtung! Das Höhe-Breite-Verhältnis der Türen stimmt nicht. Bitte ändern Sie die Anzahl der Flügel. | G29: Attention! Inadaptation de la proportion entre la haut. et la larg. du vantail. Il est recommandé de réduire le nombre de vantaux. | H29: Увага! Неправильна пропорція висоти до ширини дверей. Рекомендується зменшити кількість крил. | I29: Dėmesio! Klaidingos durų proporcijos tarp aukščio ir pločio. Rekomenduojama sumažinti durų sk.
A30: Proporcje są OK | B30: 22 | C30: Proporcje są OK | D30: Proportions are OK | E30: Пропорции ОК | F30: Die Proportionen sind OK. | G30: Les proportions sont correctes | H30: Правильна пропорція | I30: Proporcijos yra tinkamos
A31: Łączniki | B31: 23 | C31: Łączniki | D31: Joints | E31: Соединители | F31: Verbindung | G31: Joints | H31: З'єднання | I31: Jungtys
A32: Obliczenia wysokości wypełnień łączonych | B32: 24 | C32: Obliczenia wysokości wypełnień łączonych | D32: Calculation of heght with combined infills | E32: Расчет высоты соединяемых наполнений | F32: Berechnung der Höhe der verbundenen Füllungen | G32: Calcul de la hauteur de remplissage des joints | H32: Розрахунок висоти використаних наповнень | I32: Užpildo jungties aukščio apskaičiavimas
A33: Wybierz łącznik: | B33: 25 | C33: Wybierz łącznik: | D33: Choose a joint: | E33: Выбери соединитель: | F33: Verbindung auswählen: | G33: Choix des joints | H33: Виберіть з'єднання. | I33: Pasirinkite jungti:
A34: Równomierne rozłożenie łączników. | B34: 26 | C34: Równomierne rozłożenie łączników. | D34: Joints split door infills to equal panels | E34: Равномерное распределение соединителей. | F34: Gleichmäßige Verteilung der Verbinder | G34: Disposition uniforme des joints | H34: Рівномірне розподілення з'єднань. | I34: Tolygus jungčių pasiskirstymas
A35: Jedna grubość wypełnienia | B35: 27 | C35: Jedna grubość wypełnienia | D35: The same thickness of infills | E35: Одна ширина наполнения | F35: Gleiche Stärke der Füllung | G35: L'épaisseur du remplissage | H35: Одна товщина наповнення | I35: Tas pats užpildo storis
A36: i (ilość łączników) | B36: 28 | C36: i (ilość łączników) | D36: i (number of joiners) | E36: кол-во соединителей | F36: und (Anzahl der Verbindungen) | G36: i (nombre de joints) | H36: і (кількість з'єднань) | I36: i ( Jungčių kiekis)
A37: Liczba elementów składowych | B37: 29 | C37: Liczba elementów składowych | D37: The number of elements | E37: Кол-во деталей | F37: Anzahl der Elemente | G37: Nombre d'éléments | H37: Кількість деталей | I37: Elementų skaičius
A38: Elementy z płyty | B38: 30 | C38: Elementy z płyty | D38: Chipboard parts | E38: Элементы из плиты | F38: Elemente aus Pressspan | G38: Eléments en aggloméré | H38: Елементи з плити | I38: Elementai pagaminti iš plokštės
A39: Wys. wyp. z płyty bez łączników | B39: 31 | C39: Wys. wyp. z płyty bez łączników | D39: Board height without joiners | E39: Выс. нап. из плиты без соед. | F39: Höhe der Spanplatten ohne Verbindung | G39: H remp. en aggloméré sans joints | H39: Вис. нап. з плити без з'єднань | I39: Plokštės elementų aukštis be jungčių
A40: A (wys. elementów z płyty) | B40: 32 | C40: A (wys. elementów z płyty) | D40: A (single board panel height) | E40: А (выс. элементов из плиты) | F40: A (Höhe der Spanplatten) | G40: A (haut. éléments en aggloméré) | H40: A (висота елементів з плити) | I40: A (plokštės elementų aukštis)
A41: B (wys. elementów z płyty) | B41: 33 | C41: B (wys. elementów z płyty) | D41: B (single board panel height) | E41: B (выс. элементов из плиты) | F41: B (Höhe der Spanplatten) | G41: B (haut. éléments en aggloméré) | H41: B (висота елементів з плити) | I41: B (plokštės elementų aukštis)
A42: Elementy ze szkła 4mm | B42: 34 | C42: Elementy ze szkła 4mm | D42: Glass elements 4mm | E42: Элементы из стекла 4 мм | F42: Glasselemente 4mm | G42: Eléments en verre 4mm | H42: Елементи з скла 4мм | I42: Stiklo elementai 4mm
A43: Wys. wyp. 4mm bez łączników | B43: 35 | C43: Wys. wyp. 4mm bez łączników | D43: Infill height 4mm without joiners | E43: Выс. нап. 4 мм без соед. | F43: Höhe der Füllung ohne Verbindung 4mm | G43: Haut rempl. 4 mm sans joints | H43: Вис. наповнення 4мм без з'єднань | I43: Užpildo aukštis 4mm be jungcių
A44: C (wys. elementów ze szkła 4mm) | B44: 36 | C44: C (wys. elementów ze szkła 4mm) | D44: C (single glass 4mm panel height) | E44: C (выс. элементов из стекла 4 мм) | F44: C (Höhe der Glaselemente 4mm) | G44: C (hauteur éléments en verre 4mm) | H44: C (висота елементів із скла 4мм) | I44: C (stiklo elementų aukštis 4mm)
A45: szt. | B45: 37 | C45: szt. | D45: pcs. | E45: шт. | F45: Stk. | G45: ex. | H45: шт. | I45: vnt.
A46: mm | B46: 38 | C46: mm | D46: mm | E46: мм | F46: mm | G46: mm | H46: мм | I46: mm
A47: mm* | B47: 39 | C47: mm* | D47: mm* | E47: мм* | F47: mm* | G47: mm* | H47: мм* | I47: mm*
A48: Błąd! | B48: 40 | C48: Błąd! | D48: Error! | E48: Ошибка! | F48: Fehler! | G48: Erreur! | H48: Помилка! | I48: Klaida!
A49: Niewłaściwy łącznik! | B49: 41 | C49: Niewłaściwy łącznik! | D49: Incorrect joiner! | E49: Неверный соединитель! | F49: Falsche Verbindung! | G49: Joint incorrect ! | H49: Не правильне з'єднання! | I49: Netinkamas jungtis!
A50: * - Uwaga! W systemie 18/4, przy łączeniu wypełnień o różnych grubościach (płyta, szkło), został założony luz dla szkła wynoszący 0,5mm na każdy element. W konfiguracji, gdzie występuje tylko jedno wypełnienie szklane, należy od jego wysokości odjąć 1mm, aby zwiększyć luz. | B50: 42 | C50: * - Uwaga! W systemie 18/4, przy łączeniu wypełnień o różnych grubościach (płyta, szkło), został założony luz dla szkła wynoszący 0,5mm na każdy element. W konfiguracji, gdzie występuje tylko jedno wypełnienie szklane, należy od jego wysokości odjąć 1mm, aby zwiększyć luz. | D50: Attention! In system 18/4, when combining different infill thickness (board, glass), there is an assumed gap for glass 0,5mm on every element. If there is only 1 glass infill, You should deduct 1mm, to make the gap bigger. | E50: Внимание! Система 18/4 запроектирована таким образом, что, при соединении наполнений разной толщины (плита, стекло), остается люфт для стекла в 0,5 мм на каждом элементе. В конфигурации, где имеется только стеклянное наполнение, необходимо отнять от его высоты 1 мм, чтобы увеличить люфт. | F50: * - Achtung! Im System 18/4 bei Verbindung von Füllungen unterschiedlicher Stärken (Spanplatte, Glas) wurde eine Lücke für Glas von 0,5 mm für jedes Element angenommen. Bei der Konfiguration, in der nur eine Glasfüllung vorliegt, muss von ihrer Höhe 1 mm abgezogen werden, um die Lücke zu vergrößern. | G50: * - Attention! Pour le systeme 18/4 en additionant des remplissages de différentes épaisseurs (aggloméré, verre) une marge a été créé pour le montant en verre de 0,5 mm sur chaque élément. Dans une configuration où il n'y a qu'un seul remplissage de verre, soustraite 1 mm de sa hauteur pour augmenter l'espace | H50: * - Увага! В системі 18/4, при з'єднанні наповнень різної товщини (плита, скло), врахований зазор для скла в розмірі 0,5мм на кожен елемент. В конфігурації, де є тільки скляне наповнення, потрібно від його висоти відняти 1 мм, щоб збільшити зазор. | I50: * - Dėmesio! Sistemoje 18/4, derinant skirtingus užpildų storius (plokštė, stiklas), yra kiekvienam stiklų elementui padarytas 0,5 mm laisvumas . Jei yra tik 1 stiklinis užpildas, nuo jo aukščio reikia atskaičiuoti 1mm, kad padidinti laisvumą.
A51: Szerokość drzwi | B51: 43 | C51: Szerokość drzwi | D51: Door width | E51: Ширина дверей | F51: Breite der Tür | G51: Largeur vantail | H51: Ширина дверей | I51: Durų plotis
A52: Wysokość drzwi | B52: 44 | C52: Wysokość drzwi | D52: Door height | E52: Высота дверей | F52: Höhe der Tür | G52: Hauteur vantail | H52: Висота дверей | I52: Durų aukštis
A53: Szer. wyp. 18mm | B53: 45 | C53: Szer. wyp. 18mm | D53: Board 18mm width | E53: Шир. наполнения 18 мм | F53: Breite der Füllung 18 mm | G53: Largeur remplissage 18mm | H53: Ширина наповнення - 18мм | I53: lent. pl. 18mm
A54: Szer. wyp. 16mm | B54: 46 | C54: Szer. wyp. 16mm | D54: Board 16mm width | E54: Шир. наполнения 16 мм | F54: Breite der Füllung 16 mm | G54: Largeur remplissage 16mm | H54: Ширина наповнення - 16мм | I54: lent. pl 16mm
A55: Szer. wyp. 12mm | B55: 47 | C55: Szer. wyp. 12mm | D55: Board 12mm width | E55: Шир. наполнения 12 мм | F55: Breite der Füllung 12 mm | G55: Largeur remplissage 12mm | H55: Ширина наповнення - 12мм | I55: lent. pl 12mm
A56: Szer. wyp. 10mm | B56: 48 | C56: Szer. wyp. 10mm | D56: Board 10mm width | E56: Шир. наполнения 10 мм | F56: Breite der Füllung 10 mm | G56: Largeur remplissage 10mm | H56: Ширина наповнення - 10мм | I56: lent. pl 10mm
A57: Szer. wyp. 4mm | B57: 49 | C57: Szer. wyp. 4mm | D57: Glass 4mm width | E57: Шир. наполнения 4 мм | F57: Breite der Füllung 4 mm | G57: Largeur remplissage 4mm | H57: Ширина наповнення - 4мм | I57: lent. pl 4mm
A58: Wys. wyp. 18mm | B58: 50 | C58: Wys. wyp. 18mm | D58: Board 18mm height | E58: Выс. наполнения 18 мм | F58: Höhe der Füllung 18 mm | G58: Hauteur remplissage 18mm | H58: Висота наповнення - 18мм | I58: lent. pl 18mm
A59: Wys. wyp. 16mm | B59: 51 | C59: Wys. wyp. 16mm | D59: Board 16mm height | E59: Выс. наполнения 16 мм | F59: Höhe der Füllung 16 mm | G59: Hauteur remplissage 16mm | H59: Висота наповнення - 16мм | I59: lent. pl 16mm
A60: Wys. wyp. 12mm | B60: 52 | C60: Wys. wyp. 12mm | D60: Board 12mm height | E60: Выс. наполнения 12 мм | F60: Höhe der Füllung 12 mm | G60: Hauteur remplissage 12mm | H60: Висота наповнення - 12мм | I60: lent. pl 12mm
A61: Wys. wyp. 10mm | B61: 53 | C61: Wys. wyp. 10mm | D61: Board 10mm height | E61: Выс. наполнения 10 мм | F61: Höhe der Füllung 10 mm | G61: Hauteur remplissage 10mm | H61: Висота наповнення - 10мм | I61: lent. pl 10mm
A62: Wys. wyp. 4mm | B62: 54 | C62: Wys. wyp. 4mm | D62: Glass 4mm height | E62: Выс. наполнения 4 мм | F62: Höhe der Füllung 4 mm | G62: Hauteur remplissage 4mm | H62: Висота наповнення - 4мм | I62: lent. pl 4mm
A63: Długość rączki | B63: 55 | C63: Długość rączki | D63: Handle length | E63: Длина ручки | F63: Länge des Griffs | G63: Longueur poignee | H63: Довжина ручки | I63: Rankenos ilgis
A64: Dł. listew poz. | B64: 56 | C64: Dł. listew poz. | D64: Rail length | E64: Длина поперечных профилей | F64: Länge der Leiste | G64: Longueur du rail | H64: Довжина горизон. проф. | I64: Likusių plokščių ilgis
A65: Waga skrzydła z wypełnieniem z płyty | B65: 57 | C65: Waga skrzydła z wypełnieniem z płyty | D65: Door weight with chipboard infill | E65: Вес двери с наполнением из плиты ДСП | F65: Gewicht des Flügels mit Pressspanfüllung | G65: Poids de la porte avec remplissage panneau | H65: Вага дверей з наповненням із плити | I65: Durų svoris su užpildu iš plokštės
A66: Waga skrzydła z wypełnieniem ze szkła | B66: 58 | C66: Waga skrzydła z wypełnieniem ze szkła | D66: Door weight with glass infill | E66: Вес двери с наполнением из стекла | F66: Gewicht des Flügels mit Glasfüllung | G66: Poids de la porte avec remplissage verre | H66: Вага дверей з наповненням із скла | I66: Durų svoris su užpildu iš stiklo
A67: kg | B67: 59 | C67: kg | D67: kg | E67: кг | F67: kg | G67: kg | H67: кг | I67: kg
A68: Zwiększ ilość zakładek | B68: 60 | C68: Zwiększ ilość zakładek | D68: Increase the number of ocerlaps | E68: Необходимо увеличить кол-во перехлестов | F68: Vergrößere die Anzahl von Überlappungen | G68: Augmenter nbre recouvrements | H68: Збільшити кількість накладок | I68: Padidinti persidengimų skaičių
A69: Zmniejsz ilość zakładek | B69: 61 | C69: Zmniejsz ilość zakładek | D69: Reduce the number of overlaps | E69: Необходимо уменьшить кол-во перехлестов | F69: Verkleinere die Anzahl von Überlappungen | G69: Modifier nbre recouvrements | H69: Зменшити кількість накладок | I69: Sumažinti persidengimų skaičių
A70: N/D | B70: 62 | C70: N/D | D70: N/A | E70: Н/Д | F70: n. z. | G70: N/D | H70: Н/Д | I70: N/D
A71: ------RAMOWE 18mm-------------- | B71: 63 | C71: ------RAMOWE 18mm-------------- | D71: -------FRAME 18mm-------------- | E71: -----------Pама 18мм-------------- | F71: ----Alu-Rahmen 18 mm----------- | G71: --------Cadre 18mm-------------- | H71: ---------Pама 18мм-------------- | I71: ------RĖMAS 18mm--------------
A72: ------RAMOWE 10mm-------------- | B72: 64 | C72: ------RAMOWE 10mm-------------- | D72: -------FRAME 10mm-------------- | E72: -----------Pама 10мм-------------- | F72: ----Alu-Rahmen 10 mm----------- | G72: --------Cadre 10mm-------------- | H72: ---------Pама 10мм-------------- | I72: ------RĖMAS 10mm--------------
A73: Sprawdź ilość zakładek! W większości przypadków, różnica pomiędzy ilością skrzydeł a ilością zakładek wynosi 1. Wyjątkiem może być zabudowa z czteroma skrzydłami w układzie symetrycznym, gdzie ta różnica wnosi 2 (patrz katalog). | B73: 65 | C73: Sprawdź ilość zakładek! W większości przypadków, różnica pomiędzy ilością skrzydeł a ilością zakładek wynosi 1. Wyjątkiem może być zabudowa z czteroma skrzydłami w układzie symetrycznym, gdzie ta różnica wnosi 2 (patrz katalog). | D73: Check the number of overlaps! In the most cases, the difference between the amount of wings and overlaps is one. The exception can be a development with four wings in the symmetric system , where the difference is 2 ( check the catalogue). | E73: Проверь количество перехлёстов! В большинстве случаев разница между количеством дверей и количеством перехлёстов равно 1. Исключением является конфигурация с четырьмя дверями в ассиметричном варианте исполнения, где разница равна 2 (смотрите каталог!) | F73: Prüfen Sie die Anzahl der Überlappungen! In den meisten Fällen beträgt die Differenz zwischen der Anzahl der Flügel und der Anzahl der Überlappungen 1. Eine Ausnahme kann das vierflügelige Schiebetürsystem mit vier Flügeln in symmetrischer Verteilung bilden, wo diese Differenz 2 beträgt (siehe Katalog). | G73: Vérifier le nombre de recouvrements ! Dans la plupart des cas, la différence entre le nombre de recouvrements et de vantaux est de 1. Une exception peut – être le montage de 4 vantaux symétriques, lorsque cette différence est de 2 (voir catalogue). | H73: У більшості випадків, різниця між кількістю крил і кількість вкладок дорівнює 1. Винятком може бути будова з чотирма крилами в симетричному розташуванні, де різниця дорівнює 2 (див. каталог). | I73: Patikrinkite persidengimų skaičių! Daugeliu atvejų, skirtumas tarp durų sk. ir persidengimų yra 1. Išimčiu gali būti simetriškoje sistemoje imontuojant 4 duris. Skirtumas yra 2 (žiurėkite katalogą)
A74: Waga skrzydła z wypełnieniem z płyty 18mm | B74: 66 | C74: Waga skrzydła z wypełnieniem z płyty 18mm | D74: Door weight with chipboard infill - 18mm | E74: Вес двери с наполнением из плиты ДСП - 18мм | F74: Gewicht des Flügels mit Pressspanfüllung - 18mm | G74: Poids de la porte avec remplissage panneau - 18mm | H74: Вага дверей з наповненням із плити - 18мм | I74: Durų svoris su užpildu iš plokštės - 18mm
A75: =HLOOKUP($B$1,$C$9:$I$474,$B75,FALSE) -> Waga skrzydła z wypełnieniem z płyty 16mm | B75: 67 | C75: Waga skrzydła z wypełnieniem z płyty 16mm | D75: Door weight with chipboard infill - 16mm | E75: Вес двери с наполнением из плиты ДСП - 16мм | F75: Gewicht des Flügels mit Pressspanfüllung - 16mm | G75: Poids de la porte avec remplissage panneau - 16mm | H75: Вага дверей з наповненням із плити - 16мм | I75: Durų svoris su užpildu iš plokštės - 16mm
A76: <- MAX 3,0m | B76: 68 | C76: <- MAX 3,0m | D76: <- MAX 3,0m | E76: <- MAX 3,0 м | F76: <- MAX 3,0 m | G76: <- MAX 3,0m | H76: <- MAX 3,0м | I76: <- MAX 3,0m
A77: Wymiary dla: | B77: 69 | C77: Wymiary dla:
A78: Wnęki | B78: 70 | C78: Wnęki
A79: Korpusu szafy | B79: 71 | C79: Korpusu szafy
A80: Wysokość: | B80: 72 | C80: Wysokość:
A81: Szerokość: | B81: 73 | C81: Szerokość:
A82: Głębokość: | B82: 74 | C82: Głębokość:
A83: Maksimum 3000mm | B83: 75 | C83: Maksimum 3000mm
A84: Maksimum 4050mm | B84: 76 | C84: Maksimum 4050mm
A85: Grubość płyty na korpus Gp: | B85: 77 | C85: Grubość płyty na korpus Gp:
A86: Wysokość cokołu Hc : | B86: 78 | C86: Wysokość cokołu Hc :
A87: Grubość płyty drzwi Gd: | B87: 79 | C87: Grubość płyty drzwi Gd:
A88: Szerokość zakładki Z: | B88: 80 | C88: Szerokość zakładki Z:
A89: mm (minimum 16 mm) | B89: 81 | C89: mm (minimum 16 mm)
A90: mm (minimum 50 mm) | B90: 82 | C90: mm (minimum 50 mm)
A91: mm (16 - 22 mm) | B91: 83 | C91: mm (16 - 22 mm)
A92: mm (minimum 20 mm) | B92: 84 | C92: mm (minimum 20 mm)
A93: <--Zwiększ szerokość zakładki | B93: 85 | C93: <--Zwiększ szerokość zakładki
A94: Wymiary szafy - drzwi nakładane | B94: 86 | C94: Wymiary szafy - drzwi nakładane
A95: Korpus: | B95: 87 | C95: Korpus:
A96: Wysokość Ws: | B96: 88 | C96: Wysokość Ws:
A97: Szerokość Ss: | B97: 89 | C97: Szerokość Ss:
A98: Głębokość Gs: | B98: 90 | C98: Głębokość Gs:
A99: Wnętrze korpusu: | B99: 91 | C99: Wnętrze korpusu:
A100: Wysokość Wu: | B100: 92 | C100: Wysokość Wu:
A101: Szerokość Sw: | B101: 93 | C101: Szerokość Sw:
A102: Głębokość Gu: | B102: 94 | C102: Głębokość Gu:
A103: Wieniec górny i dolny: | B103: 95 | C103: Wieniec górny i dolny:
A104: Wymiary cokołu: | B104: 96 | C104: Wymiary cokołu:
A105: Bok lewy: | B105: 97 | C105: Bok lewy:
A106: Bok prawy: | B106: 98 | C106: Bok prawy:
A107: Przegrody pionowe: | B107: 99 | C107: Przegrody pionowe:
A108: Wymiary drzwi: | B108: 100 | C108: Wymiary drzwi:
A109: Wymiary szafy - drzwi wpuszczane | B109: 101 | C109: Wymiary szafy - drzwi wpuszczane
A110: Wysokość Wd: | B110: 102 | C110: Wysokość Wd:
A111: Szerokość Sd: | B111: 103 | C111: Szerokość Sd:
A112: Grubość Gd: | B112: 104 | C112: Grubość Gd:
A113: Notatki: | B113: 105 | C113: Notatki:
A114: Grubość: | B114: 106 | C114: Grubość:
A115: Opcje montażu: | B115: 107 | C115: Opcje montażu:
A116: Bezpośredni montaż do sufitu | B116: 108 | C116: Bezpośredni montaż do sufitu
A117: Montaż do sufitu - uchwyt górny | B117: 109 | C117: Montaż do sufitu - uchwyt górny
A118: Montaż do ściany - uchwyt boczny | B118: 110 | C118: Montaż do ściany - uchwyt boczny
A119: Dostępne grubości wypełnienia: | B119: 111 | C119: Dostępne grubości wypełnienia:
A120: Wymiary otworu: | B120: 112 | C120: Wymiary otworu:
A121: Wysokość WO: | B121: 113 | C121: Wysokość WO:
A122: Szerokość SO: | B122: 114 | C122: Szerokość SO:
A123: <----- Dla ukrytego prowadnika Xmin = 46mm | B123: 115 | C123: <----- Dla ukrytego prowadnika Xmin = 46mm
A124: Wybór zabudowy: | B124: 116 | C124: Wybór zabudowy:
A125: Wariant A | B125: 117 | C125: Wariant A
A126: Wariant B | B126: 118 | C126: Wariant B
A127: Długość toru | B127: 119 | C127: Długość toru
A128: Wyliczenia dla rozwiązania bezramowego (Quantum) | B128: 120 | C128: Wyliczenia dla rozwiązania bezramowego (Quantum)
A129: Wyliczenia dla rozwiązania ramowego (Quantum R) | B129: 121 | C129: Wyliczenia dla rozwiązania ramowego (Quantum R)
A130: Wymiary wypełnienia z płyty 10mm | B130: 122 | C130: Wymiary wypełnienia z płyty 10mm
A131: Wymiary wypełnienia ze szkła 4mm | B131: 123 | C131: Wymiary wypełnienia ze szkła 4mm
A132: Wymiary profili aluminiowych | B132: 124 | C132: Wymiary profili aluminiowych
A133: Szerokość zakładki X: | B133: 125 | C133: Szerokość zakładki X:
A134: Wymiary skrzydła drzwi: | B134: 126 | C134: Wymiary skrzydła drzwi:
A135: Wys. el. z płyty | B135: 127 | C135: Wys. el. z płyty
A136: Wys. el. ze szkła | B136: 128 | C136: Wys. el. ze szkła
A137: Minimum 300mm | B137: 129 | C137: Minimum 300mm
A138: W systemach Quantum R maksymalna wysokoś drzwi wynosi 2,7m | B138: 130 | C138: W systemach Quantum R maksymalna wysokoś drzwi wynosi 2,7m
A139: =HLOOKUP($B$1,$C$9:$I$474,$B139,FALSE) -> Maksymalna długość łącznika A-HR10FL wynosi 3m | B139: 131 | C139: Maksymalna długość łącznika A-HR10FL wynosi 3m
A140: Maksymalna długość łączników A-HRS10 i A-HR10 wynosi 6m | B140: 132 | C140: Maksymalna długość łączników A-HRS10 i A-HR10 wynosi 6m
A141: Waga skrzydła [kg] | B141: 133 | C141: Waga skrzydła [kg]
A142: Przekroczono dopuszczalną wagę skrzydła 50kg | B142: 134 | C142: Przekroczono dopuszczalną wagę skrzydła 50kg
A143: Max 3m | B143: 135 | C143: Max 3m
A144: 0 | B144: 136
A145: 0 | B145: 137
A146: 0 | B146: 138
A147: 0 | B147: 139
A148: 0 | B148: 140
A149: 0 | B149: 141
A150: 0 | B150: 142
A151: 0 | B151: 143
A152: 0 | B152: 144
A153: 0 | B153: 145
A154: 0 | B154: 146
A155: 0 | B155: 147
A156: 0 | B156: 148
A157: 0 | B157: 149
A158: 0 | B158: 150
A159: 0 | B159: 151
A160: 0 | B160: 152
A161: 0 | B161: 153
A162: 0 | B162: 154
A163: 0 | B163: 155
A164: 0 | B164: 156
A165: 0 | B165: 157
A166: 0 | B166: 158
A167: 0 | B167: 159
A168: 0 | B168: 160
A169: 0 | B169: 161
A170: 0 | B170: 162
A171: 0 | B171: 163
A172: 0 | B172: 164
A173: 0 | B173: 165
A174: 0 | B174: 166
A175: 0 | B175: 167
A176: 0 | B176: 168
A177: 0 | B177: 169
A178: 0 | B178: 170
A179: 0 | B179: 171
A180: 0 | B180: 172
A181: 0 | B181: 173
A182: 0 | B182: 174
A183: 0 | B183: 175
A184: 0 | B184: 176
A185: 0 | B185: 177
A186: 0 | B186: 178
A187: 0 | B187: 179
A188: 0 | B188: 180
A189: 0 | B189: 181
A190: 0 | B190: 182
A191: 0 | B191: 183
A192: 0 | B192: 184
A193: 0 | B193: 185
A194: 0 | B194: 186
A195: 0 | B195: 187
A196: 0 | B196: 188
A197: 0 | B197: 189
A198: 0 | B198: 190
A199: 0 | B199: 191
A200: 0 | B200: 192
... 274 more rows
